Department family,Entity,Date,Expense type,Expense area,Supplier,Transaction number,Amount
Department of Health,Leicestershire Partnership NHS Trust,01/12/22,Computer Software,ChatHealth,APPERCEPT LTD,1259,120000.00
Department of Health,Leicestershire Partnership NHS Trust,01/12/22,Occupational Health,HR Operations,UHL NHS TRUST (RWE),L0265679,256730.00
Department of Health,Leicestershire Partnership NHS Trust,01/12/22,Unitary Payment,"The Agnes Unit (AKA Assessment and Treatment Centre) (P85, LPT)",ARDEN PARTNERSHIP (LEICESTER),SI0111,127037.34
Department of Health,Leicestershire Partnership NHS Trust,01/12/22,Rent,"St Peters Health Center (Part 1st and 2nd floors) (P66, LPT)",LEICESTER LIFT CO,LEP1-SI1135,30082.84
Department of Health,Leicestershire Partnership NHS Trust,05/12/22,External Data Processing / Storage,Records & information Governance,L&R STORAGE,4011483,41397.22
Department of Health,Leicestershire Partnership NHS Trust,05/12/22,Professional & Technical Agency,LLR Shared Care Record Programme,CHANNEL 3 CONSULTING,20983,28706.63
Department of Health,Leicestershire Partnership NHS Trust,05/12/22,Nurse - Band 6 -Agency,AMH - Central Access Point,HCL WORKFORCE SOLUTIONS,HWSI0001456,7869.20
Department of Health,Leicestershire Partnership NHS Trust,05/12/22,Nurse - Band 6 -Agency,Adult City Central CMHT - St Peters,HCL WORKFORCE SOLUTIONS,HWSI0001456,274.82
Department of Health,Leicestershire Partnership NHS Trust,05/12/22,Nurse - Band 6 -Agency,Adult County Charnwood CMHT - Loughborough Base,HCL WORKFORCE SOLUTIONS,HWSI0001456,1334.63
Department of Health,Leicestershire Partnership NHS Trust,05/12/22,NURSE - BAND 5 - AGENCY,Beaumont Ward - Bradgate Unit,HCL WORKFORCE SOLUTIONS,HWSI0001456,999.65
Department of Health,Leicestershire Partnership NHS Trust,05/12/22,NURSE - BAND 5 - AGENCY,Belvoir Psychiatric Intensive Care Unit,HCL WORKFORCE SOLUTIONS,HWSI0001456,392.91
Department of Health,Leicestershire Partnership NHS Trust,05/12/22,Nurse - Band 6 -Agency,Crisis Resolution,HCL WORKFORCE SOLUTIONS,HWSI0001456,15156.34
Department of Health,Leicestershire Partnership NHS Trust,05/12/22,Nurse - Band 6 -Agency,South Leicestershire CMHT MHSOP,HCL WORKFORCE SOLUTIONS,HWSI0001456,1351.45
Department of Health,Leicestershire Partnership NHS Trust,05/12/22,Nurse - Band 6 -Agency,AMH - Central Access Point,HCL NURSING,HNSI0001188,1642.84
Department of Health,Leicestershire Partnership NHS Trust,05/12/22,Nurse - Band 7 - Agency,Adult County- East Leicester CMHT,HCL NURSING,HNSI0001188,1335.00
Department of Health,Leicestershire Partnership NHS Trust,05/12/22,NURSE - BAND 2 - AGENCY,Agnes Unit,HCL NURSING,HNSI0001188,13837.94
Department of Health,Leicestershire Partnership NHS Trust,05/12/22,NURSE - BAND 5 - AGENCY,Agnes Unit,HCL NURSING,HNSI0001188,17579.61
Department of Health,Leicestershire Partnership NHS Trust,05/12/22,NURSE - BAND 2 - AGENCY,Ashby Ward (Bradgate Unit),HCL NURSING,HNSI0001188,9265.65
Department of Health,Leicestershire Partnership NHS Trust,05/12/22,NURSE - BAND 5 - AGENCY,Ashby Ward (Bradgate Unit),HCL NURSING,HNSI0001188,6356.37
Department of Health,Leicestershire Partnership NHS Trust,05/12/22,NURSE - BAND 2 - AGENCY,Beaumont Ward - Bradgate Unit,HCL NURSING,HNSI0001188,1416.47
Department of Health,Leicestershire Partnership NHS Trust,05/12/22,NURSE - BAND 5 - AGENCY,Beaumont Ward - Bradgate Unit,HCL NURSING,HNSI0001188,14726.24
Department of Health,Leicestershire Partnership NHS Trust,05/12/22,NURSE - BAND 2 - AGENCY,Belvoir Psychiatric Intensive Care Unit,HCL NURSING,HNSI0001188,4442.84
Department of Health,Leicestershire Partnership NHS Trust,05/12/22,NURSE - BAND 5 - AGENCY,Belvoir Psychiatric Intensive Care Unit,HCL NURSING,HNSI0001188,8649.67
Department of Health,Leicestershire Partnership NHS Trust,05/12/22,NURSE - BAND 2 - AGENCY,Bosworth Ward - Bradgate Unit,HCL NURSING,HNSI0001188,1069.26
Department of Health,Leicestershire Partnership NHS Trust,05/12/22,NURSE - BAND 5 - AGENCY,Bosworth Ward - Bradgate Unit,HCL NURSING,HNSI0001188,8598.27
Department of Health,Leicestershire Partnership NHS Trust,05/12/22,NURSE - BAND 2 - AGENCY,Cedar (Willows),HCL NURSING,HNSI0001188,2420.90
Department of Health,Leicestershire Partnership NHS Trust,05/12/22,NURSE - BAND 5 - AGENCY,Cedar (Willows),HCL NURSING,HNSI0001188,899.08
Department of Health,Leicestershire Partnership NHS Trust,05/12/22,Nurse - Band 6 -Agency,City West CMHT MHSOP,HCL NURSING,HNSI0001188,418.50
Department of Health,Leicestershire Partnership NHS Trust,05/12/22,NURSE - BAND 2 - AGENCY,Coleman Ward,HCL NURSING,HNSI0001188,10339.08
Department of Health,Leicestershire Partnership NHS Trust,05/12/22,NURSE - BAND 5 - AGENCY,Coleman Ward,HCL NURSING,HNSI0001188,3952.57
Department of Health,Leicestershire Partnership NHS Trust,05/12/22,NURSE - BAND 5 - AGENCY,Crisis Resolution,HCL NURSING,HNSI0001188,906.08
Department of Health,Leicestershire Partnership NHS Trust,05/12/22,NURSE - BAND 2 - AGENCY,Griffin Ward (HPC),HCL NURSING,HNSI0001188,8638.75
Department of Health,Leicestershire Partnership NHS Trust,05/12/22,NURSE - BAND 5 - AGENCY,Griffin Ward (HPC),HCL NURSING,HNSI0001188,4616.06
Department of Health,Leicestershire Partnership NHS Trust,05/12/22,NURSE - BAND 2 - AGENCY,Gwendolen Ward,HCL NURSING,HNSI0001188,6247.71
Department of Health,Leicestershire Partnership NHS Trust,05/12/22,NURSE - BAND 5 - AGENCY,Gwendolen Ward,HCL NURSING,HNSI0001188,983.19
Department of Health,Leicestershire Partnership NHS Trust,05/12/22,NURSE - BAND 2 - AGENCY,Heather Ward,HCL NURSING,HNSI0001188,2599.76
Department of Health,Leicestershire Partnership NHS Trust,05/12/22,NURSE - BAND 5 - AGENCY,Heather Ward,HCL NURSING,HNSI0001188,6097.90
Department of Health,Leicestershire Partnership NHS Trust,05/12/22,NURSE - BAND 2 - AGENCY,Kirby Ward,HCL NURSING,HNSI0001188,2355.67
Department of Health,Leicestershire Partnership NHS Trust,05/12/22,NURSE - BAND 5 - AGENCY,Kirby Ward,HCL NURSING,HNSI0001188,2554.41
Department of Health,Leicestershire Partnership NHS Trust,05/12/22,NURSE - BAND 2 - AGENCY,Maple Ward,HCL NURSING,HNSI0001188,1555.22
Department of Health,Leicestershire Partnership NHS Trust,05/12/22,NURSE - BAND 5 - AGENCY,Maple Ward,HCL NURSING,HNSI0001188,1886.14
Department of Health,Leicestershire Partnership NHS Trust,05/12/22,Nurse - Band 6 -Agency,Mental Health Liaison Team,HCL NURSING,HNSI0001188,1739.98
Department of Health,Leicestershire Partnership NHS Trust,05/12/22,NURSE - BAND 2 - AGENCY,Mill Lodge,HCL NURSING,HNSI0001188,2426.86
Department of Health,Leicestershire Partnership NHS Trust,05/12/22,NURSE - BAND 5 - AGENCY,Mill Lodge,HCL NURSING,HNSI0001188,1029.70
Department of Health,Leicestershire Partnership NHS Trust,05/12/22,NURSE - BAND 2 - AGENCY,Phoenix Ward (HPC),HCL NURSING,HNSI0001188,1042.88
Department of Health,Leicestershire Partnership NHS Trust,05/12/22,NURSE - BAND 5 - AGENCY,Phoenix Ward (HPC),HCL NURSING,HNSI0001188,2247.70
Department of Health,Leicestershire Partnership NHS Trust,05/12/22,NURSE - BAND 2 - AGENCY,Place Of Safety Assessment Unit,HCL NURSING,HNSI0001188,969.38
Department of Health,Leicestershire Partnership NHS Trust,05/12/22,NURSE - BAND 5 - AGENCY,Place Of Safety Assessment Unit,HCL NURSING,HNSI0001188,2426.57
Department of Health,Leicestershire Partnership NHS Trust,05/12/22,NURSE - BAND 2 - AGENCY,Stewart House,HCL NURSING,HNSI0001188,254.23
Department of Health,Leicestershire Partnership NHS Trust,05/12/22,NURSE - BAND 5 - AGENCY,Stewart House,HCL NURSING,HNSI0001188,1047.20
Department of Health,Leicestershire Partnership NHS Trust,05/12/22,NURSE - BAND 2 - AGENCY,Sycamore (Willows),HCL NURSING,HNSI0001188,4536.71
Department of Health,Leicestershire Partnership NHS Trust,05/12/22,NURSE - BAND 5 - AGENCY,Sycamore (Willows),HCL NURSING,HNSI0001188,1920.47
Department of Health,Leicestershire Partnership NHS Trust,05/12/22,NURSE - BAND 2 - AGENCY,Thornton Ward - Bradgate Unit,HCL NURSING,HNSI0001188,1279.35
Department of Health,Leicestershire Partnership NHS Trust,05/12/22,NURSE - BAND 5 - AGENCY,Thornton Ward - Bradgate Unit,HCL NURSING,HNSI0001188,1021.39
Department of Health,Leicestershire Partnership NHS Trust,05/12/22,NURSE - BAND 2 - AGENCY,Urgent Care Hub,HCL NURSING,HNSI0001188,3599.45
Department of Health,Leicestershire Partnership NHS Trust,05/12/22,NURSE - BAND 2 - AGENCY,Watermead Ward (Bradgate Unit),HCL NURSING,HNSI0001188,977.14
Department of Health,Leicestershire Partnership NHS Trust,05/12/22,NURSE - BAND 2 - AGENCY,Welford Ward,HCL NURSING,HNSI0001188,1252.33
Department of Health,Leicestershire Partnership NHS Trust,05/12/22,NURSE - BAND 5 - AGENCY,Welford Ward,HCL NURSING,HNSI0001188,1656.49
Department of Health,Leicestershire Partnership NHS Trust,05/12/22,Nurse - Band 6 -Agency,AMH - Central Access Point,HCL WORKFORCE SOLUTIONS,HWSI0001463,4695.60
Department of Health,Leicestershire Partnership NHS Trust,05/12/22,Nurse - Band 6 -Agency,Adult County Charnwood CMHT - Loughborough Base,HCL WORKFORCE SOLUTIONS,HWSI0001463,1334.63
Department of Health,Leicestershire Partnership NHS Trust,05/12/22,NURSE - BAND 5 - AGENCY,Beaumont Ward - Bradgate Unit,HCL WORKFORCE SOLUTIONS,HWSI0001463,329.83
Department of Health,Leicestershire Partnership NHS Trust,05/12/22,Nurse - Band 6 -Agency,Crisis Resolution,HCL WORKFORCE SOLUTIONS,HWSI0001463,14577.87
Department of Health,Leicestershire Partnership NHS Trust,05/12/22,NURSE - BAND 5 - AGENCY,Maple Ward,HCL WORKFORCE SOLUTIONS,HWSI0001463,329.84
Department of Health,Leicestershire Partnership NHS Trust,05/12/22,Nurse - Band 6 -Agency,South Leicestershire CMHT MHSOP,HCL WORKFORCE SOLUTIONS,HWSI0001463,1351.45
Department of Health,Leicestershire Partnership NHS Trust,05/12/22,NURSE - BAND 5 - AGENCY,Watermead Ward (Bradgate Unit),HCL WORKFORCE SOLUTIONS,HWSI0001463,329.84
Department of Health,Leicestershire Partnership NHS Trust,05/12/22,Nurse - Band 6 -Agency,AMH - Central Access Point,HCL NURSING,HNSI0001193,1467.34
Department of Health,Leicestershire Partnership NHS Trust,05/12/22,NURSE - BAND 2 - AGENCY,Agnes Unit,HCL NURSING,HNSI0001193,14326.90
Department of Health,Leicestershire Partnership NHS Trust,05/12/22,NURSE - BAND 5 - AGENCY,Agnes Unit,HCL NURSING,HNSI0001193,19510.00
Department of Health,Leicestershire Partnership NHS Trust,05/12/22,NURSE - BAND 2 - AGENCY,Ashby Ward (Bradgate Unit),HCL NURSING,HNSI0001193,9255.74
Department of Health,Leicestershire Partnership NHS Trust,05/12/22,NURSE - BAND 5 - AGENCY,Ashby Ward (Bradgate Unit),HCL NURSING,HNSI0001193,15737.87
Department of Health,Leicestershire Partnership NHS Trust,05/12/22,NURSE - BAND 2 - AGENCY,Beaumont Ward - Bradgate Unit,HCL NURSING,HNSI0001193,2960.45
Department of Health,Leicestershire Partnership NHS Trust,05/12/22,NURSE - BAND 5 - AGENCY,Beaumont Ward - Bradgate Unit,HCL NURSING,HNSI0001193,10342.65
Department of Health,Leicestershire Partnership NHS Trust,05/12/22,NURSE - BAND 2 - AGENCY,Belvoir Psychiatric Intensive Care Unit,HCL NURSING,HNSI0001193,5335.56
Department of Health,Leicestershire Partnership NHS Trust,05/12/22,NURSE - BAND 5 - AGENCY,Belvoir Psychiatric Intensive Care Unit,HCL NURSING,HNSI0001193,6386.34
Department of Health,Leicestershire Partnership NHS Trust,05/12/22,NURSE - BAND 2 - AGENCY,Bosworth Ward - Bradgate Unit,HCL NURSING,HNSI0001193,5165.26
Department of Health,Leicestershire Partnership NHS Trust,05/12/22,NURSE - BAND 5 - AGENCY,Bosworth Ward - Bradgate Unit,HCL NURSING,HNSI0001193,6075.23
Department of Health,Leicestershire Partnership NHS Trust,05/12/22,NURSE - BAND 2 - AGENCY,Cedar (Willows),HCL NURSING,HNSI0001193,2566.99
Department of Health,Leicestershire Partnership NHS Trust,05/12/22,NURSE - BAND 5 - AGENCY,Cedar (Willows),HCL NURSING,HNSI0001193,1203.84
Department of Health,Leicestershire Partnership NHS Trust,05/12/22,Nurse - Band 6 -Agency,City West CMHT MHSOP,HCL NURSING,HNSI0001193,915.86
Department of Health,Leicestershire Partnership NHS Trust,05/12/22,NURSE - BAND 2 - AGENCY,Coleman Ward,HCL NURSING,HNSI0001193,10000.96
Department of Health,Leicestershire Partnership NHS Trust,05/12/22,NURSE - BAND 5 - AGENCY,Coleman Ward,HCL NURSING,HNSI0001193,7928.23
Department of Health,Leicestershire Partnership NHS Trust,05/12/22,NURSE - BAND 2 - AGENCY,Griffin Ward (HPC),HCL NURSING,HNSI0001193,6495.66
Department of Health,Leicestershire Partnership NHS Trust,05/12/22,NURSE - BAND 5 - AGENCY,Griffin Ward (HPC),HCL NURSING,HNSI0001193,5318.42
Department of Health,Leicestershire Partnership NHS Trust,05/12/22,NURSE - BAND 2 - AGENCY,Gwendolen Ward,HCL NURSING,HNSI0001193,4809.63
Department of Health,Leicestershire Partnership NHS Trust,05/12/22,NURSE - BAND 5 - AGENCY,Gwendolen Ward,HCL NURSING,HNSI0001193,1175.01
Department of Health,Leicestershire Partnership NHS Trust,05/12/22,NURSE - BAND 2 - AGENCY,Heather Ward,HCL NURSING,HNSI0001193,1399.70
Department of Health,Leicestershire Partnership NHS Trust,05/12/22,NURSE - BAND 5 - AGENCY,Heather Ward,HCL NURSING,HNSI0001193,6363.37
Department of Health,Leicestershire Partnership NHS Trust,05/12/22,NURSE - BAND 2 - AGENCY,Kirby Ward,HCL NURSING,HNSI0001193,2971.52
Department of Health,Leicestershire Partnership NHS Trust,05/12/22,NURSE - BAND 5 - AGENCY,Kirby Ward,HCL NURSING,HNSI0001193,1877.49
Department of Health,Leicestershire Partnership NHS Trust,05/12/22,NURSE - BAND 2 - AGENCY,Maple Ward,HCL NURSING,HNSI0001193,1010.22
Department of Health,Leicestershire Partnership NHS Trust,05/12/22,NURSE - BAND 5 - AGENCY,Maple Ward,HCL NURSING,HNSI0001193,3562.27
Department of Health,Leicestershire Partnership NHS Trust,05/12/22,Nurse - Band 6 -Agency,Mental Health Liaison Team,HCL NURSING,HNSI0001193,936.24
Department of Health,Leicestershire Partnership NHS Trust,05/12/22,NURSE - BAND 2 - AGENCY,Mill Lodge,HCL NURSING,HNSI0001193,3940.77
Department of Health,Leicestershire Partnership NHS Trust,05/12/22,NURSE - BAND 5 - AGENCY,Mill Lodge,HCL NURSING,HNSI0001193,1605.00
Department of Health,Leicestershire Partnership NHS Trust,05/12/22,NURSE - BAND 2 - AGENCY,Phoenix Ward (HPC),HCL NURSING,HNSI0001193,3019.03
Department of Health,Leicestershire Partnership NHS Trust,05/12/22,NURSE - BAND 5 - AGENCY,Phoenix Ward (HPC),HCL NURSING,HNSI0001193,449.54
Department of Health,Leicestershire Partnership NHS Trust,05/12/22,NURSE - BAND 2 - AGENCY,Place Of Safety Assessment Unit,HCL NURSING,HNSI0001193,1133.16
Department of Health,Leicestershire Partnership NHS Trust,05/12/22,NURSE - BAND 5 - AGENCY,Place Of Safety Assessment Unit,HCL NURSING,HNSI0001193,2953.97
Department of Health,Leicestershire Partnership NHS Trust,05/12/22,NURSE - BAND 2 - AGENCY,Stewart House,HCL NURSING,HNSI0001193,186.11
Department of Health,Leicestershire Partnership NHS Trust,05/12/22,NURSE - BAND 2 - AGENCY,Sycamore (Willows),HCL NURSING,HNSI0001193,1473.42
Department of Health,Leicestershire Partnership NHS Trust,05/12/22,NURSE - BAND 5 - AGENCY,Sycamore (Willows),HCL NURSING,HNSI0001193,6614.79
Department of Health,Leicestershire Partnership NHS Trust,05/12/22,NURSE - BAND 2 - AGENCY,Thornton Ward - Bradgate Unit,HCL NURSING,HNSI0001193,1012.22
Department of Health,Leicestershire Partnership NHS Trust,05/12/22,NURSE - BAND 5 - AGENCY,Thornton Ward - Bradgate Unit,HCL NURSING,HNSI0001193,1565.04
Department of Health,Leicestershire Partnership NHS Trust,05/12/22,NURSE - BAND 2 - AGENCY,Urgent Care Hub,HCL NURSING,HNSI0001193,1459.30
Department of Health,Leicestershire Partnership NHS Trust,05/12/22,NURSE - BAND 2 - AGENCY,Welford Ward,HCL NURSING,HNSI0001193,1469.11
Department of Health,Leicestershire Partnership NHS Trust,05/12/22,NURSE - BAND 5 - AGENCY,Welford Ward,HCL NURSING,HNSI0001193,1032.00
Department of Health,Leicestershire Partnership NHS Trust,05/12/22,NURSE - BAND 2 - AGENCY,CAMHS ED Team,HCL NURSING,HNSI0001195,3919.24
Department of Health,Leicestershire Partnership NHS Trust,05/12/22,NURSE - BAND 2 - AGENCY,CAMHS Inpatient Service,HCL NURSING,HNSI0001195,7158.63
Department of Health,Leicestershire Partnership NHS Trust,05/12/22,NURSE - BAND 5 - AGENCY,CAMHS Inpatient Service,HCL NURSING,HNSI0001195,8258.23
Department of Health,Leicestershire Partnership NHS Trust,05/12/22,NURSE - BAND 2 - AGENCY,CAMHS Learning Disabilities and Outreach Team,HCL NURSING,HNSI0001195,1517.29
Department of Health,Leicestershire Partnership NHS Trust,05/12/22,Nurse - Band 6 -Agency,CAMHS Waiting List Monies,HCL NURSING,HNSI0001195,6274.56
Department of Health,Leicestershire Partnership NHS Trust,05/12/22,NURSE - BAND 2 - AGENCY,Langley Ward ED Inpatient Service,HCL NURSING,HNSI0001195,4331.94
Department of Health,Leicestershire Partnership NHS Trust,05/12/22,NURSE - BAND 5 - AGENCY,Langley Ward ED Inpatient Service,HCL NURSING,HNSI0001195,4432.09
Department of Health,Leicestershire Partnership NHS Trust,05/12/22,Nurse - Band 6 -Agency,CAMHS HUB / CAP,HCL WORKFORCE SOLUTIONS,HWSI0001457,6808.92
Department of Health,Leicestershire Partnership NHS Trust,05/12/22,Nurse - Band 6 -Agency,CAMHS Waiting List Monies,HCL WORKFORCE SOLUTIONS,HWSI0001457,18496.71
Department of Health,Leicestershire Partnership NHS Trust,05/12/22,Nurse - Band 6 -Agency,Crisis Response and Home Treatment,HCL WORKFORCE SOLUTIONS,HWSI0001457,1934.86
Department of Health,Leicestershire Partnership NHS Trust,05/12/22,NURSE - BAND 2 - AGENCY,CAMHS ED Team,HCL NURSING,HNSI0001190,2694.12
Department of Health,Leicestershire Partnership NHS Trust,05/12/22,NURSE - BAND 2 - AGENCY,CAMHS Inpatient Service,HCL NURSING,HNSI0001190,10543.41
Department of Health,Leicestershire Partnership NHS Trust,05/12/22,NURSE - BAND 5 - AGENCY,CAMHS Inpatient Service,HCL NURSING,HNSI0001190,8638.99
Department of Health,Leicestershire Partnership NHS Trust,05/12/22,NURSE - BAND 2 - AGENCY,CAMHS Learning Disabilities and Outreach Team,HCL NURSING,HNSI0001190,585.59
Department of Health,Leicestershire Partnership NHS Trust,05/12/22,Nurse - Band 6 -Agency,CAMHS Waiting List Monies,HCL NURSING,HNSI0001190,5053.91
Department of Health,Leicestershire Partnership NHS Trust,05/12/22,NURSE - BAND 2 - AGENCY,Langley Ward ED Inpatient Service,HCL NURSING,HNSI0001190,7349.54
Department of Health,Leicestershire Partnership NHS Trust,05/12/22,NURSE - BAND 5 - AGENCY,Langley Ward ED Inpatient Service,HCL NURSING,HNSI0001190,2158.45
Department of Health,Leicestershire Partnership NHS Trust,05/12/22,Nurse - Band 6 -Agency,CAMHS HUB / CAP,HCL WORKFORCE SOLUTIONS,HWSI0001464,6195.77
Department of Health,Leicestershire Partnership NHS Trust,05/12/22,Nurse - Band 6 -Agency,CAMHS Waiting List Monies,HCL WORKFORCE SOLUTIONS,HWSI0001464,16830.51
Department of Health,Leicestershire Partnership NHS Trust,05/12/22,Nurse - Band 6 -Agency,Crisis Response and Home Treatment,HCL WORKFORCE SOLUTIONS,HWSI0001464,1934.86
Department of Health,Leicestershire Partnership NHS Trust,06/12/22,Gas,"Beaumont Leys Health Centre (P94, LPT)",TOTAL GAS & POWER LTD,283720960/22,1203.43
Department of Health,Leicestershire Partnership NHS Trust,06/12/22,Gas,"Bennion Centre (including Forest Grange Day Unit) (P8, LPT)",TOTAL GAS & POWER LTD,283720960/22,15430.42
Department of Health,Leicestershire Partnership NHS Trust,06/12/22,Gas,"Bradgate Unit (including Glenvale day Unit) (P7, LPT)",TOTAL GAS & POWER LTD,283720960/22,22464.05
Department of Health,Leicestershire Partnership NHS Trust,06/12/22,Gas,Bridge Park Plaza - First Floor (LPT),TOTAL GAS & POWER LTD,283720960/22,2048.02
Department of Health,Leicestershire Partnership NHS Trust,06/12/22,Gas,"Bridge Park Road - Units 2 and 3 (P148, LPT)",TOTAL GAS & POWER LTD,283720960/22,264.23
Department of Health,Leicestershire Partnership NHS Trust,06/12/22,Gas,"Coalville Community Hospital (P138, LPT)",TOTAL GAS & POWER LTD,283720960/22,14642.89
Department of Health,Leicestershire Partnership NHS Trust,06/12/22,Gas,"Coalville Health Centre (P121, LPT)",TOTAL GAS & POWER LTD,283720960/22,989.41
Department of Health,Leicestershire Partnership NHS Trust,06/12/22,Gas,"Evington Centre (P6, LPT)",TOTAL GAS & POWER LTD,283720960/22,1868.50
Department of Health,Leicestershire Partnership NHS Trust,06/12/22,Gas,"Farm Lodge (P34, LPT)",TOTAL GAS & POWER LTD,283720960/22,202.80
Department of Health,Leicestershire Partnership NHS Trust,06/12/22,Gas,"Feilding Palmer Hospital (Lutterworth) (P131, LPT)",TOTAL GAS & POWER LTD,283720960/22,2647.04
Department of Health,Leicestershire Partnership NHS Trust,06/12/22,Gas,"Frith Cottages 3 & 4 (P36, LPT)",TOTAL GAS & POWER LTD,283720960/22,225.56
Department of Health,Leicestershire Partnership NHS Trust,06/12/22,Gas,HIS,TOTAL GAS & POWER LTD,283720960/22,162.55
Department of Health,Leicestershire Partnership NHS Trust,06/12/22,Gas,"Hawthorne Centre - Coalville (P14, LPT)",TOTAL GAS & POWER LTD,283720960/22,705.76
Department of Health,Leicestershire Partnership NHS Trust,06/12/22,Gas,"Hinckley and Bosworth Community Hospital (Sunnyside) (P133, LPT)",TOTAL GAS & POWER LTD,283720960/22,10012.86
Department of Health,Leicestershire Partnership NHS Trust,06/12/22,Gas,"Hynca Lodge (P33, LPT)",TOTAL GAS & POWER LTD,283720960/22,546.23
Department of Health,Leicestershire Partnership NHS Trust,06/12/22,Gas,"LGH - Gwendolen House (P4, LPT)",TOTAL GAS & POWER LTD,283720960/22,3322.45
Department of Health,Leicestershire Partnership NHS Trust,06/12/22,Gas,"Loughborough Hospital (P136, LPT)",TOTAL GAS & POWER LTD,283720960/22,25717.86
Department of Health,Leicestershire Partnership NHS Trust,06/12/22,Gas,Mawson House (LPT),TOTAL GAS & POWER LTD,283720960/22,840.12
Department of Health,Leicestershire Partnership NHS Trust,06/12/22,Gas,"Mett Centre (P49, LPT)",TOTAL GAS & POWER LTD,283720960/22,506.51
Department of Health,Leicestershire Partnership NHS Trust,06/12/22,Gas,"Narborough Health Centre (P117, LPT)",TOTAL GAS & POWER LTD,283720960/22,766.92
Department of Health,Leicestershire Partnership NHS Trust,06/12/22,Gas,"Neville Centre - LGH (was DSC) (P147, LPT)",TOTAL GAS & POWER LTD,283720960/22,1468.64
Department of Health,Leicestershire Partnership NHS Trust,06/12/22,Gas,"OSL House (P54, LPT)",TOTAL GAS & POWER LTD,283720960/22,1031.06
Department of Health,Leicestershire Partnership NHS Trust,06/12/22,Gas,"Orchard Resource Centre (P15, LPT)",TOTAL GAS & POWER LTD,283720960/22,1247.70
Department of Health,Leicestershire Partnership NHS Trust,06/12/22,Gas,"Rutland Memorial Hospital (P134, LPT)",TOTAL GAS & POWER LTD,283720960/22,-2822.73
Department of Health,Leicestershire Partnership NHS Trust,06/12/22,Gas,"Shepshed Health Centre (P123, LPT)",TOTAL GAS & POWER LTD,283720960/22,946.50
Department of Health,Leicestershire Partnership NHS Trust,06/12/22,Gas,"Springfield Road Health Centre (P92, LPT)",TOTAL GAS & POWER LTD,283720960/22,804.04
Department of Health,Leicestershire Partnership NHS Trust,06/12/22,Gas,"Stewart House (P61, LPT)",TOTAL GAS & POWER LTD,283720960/22,5864.98
Department of Health,Leicestershire Partnership NHS Trust,06/12/22,Gas,"Swithland House - London Road 352 (P44, LPT)",TOTAL GAS & POWER LTD,283720960/22,1437.16
Department of Health,Leicestershire Partnership NHS Trust,06/12/22,Gas,"The Agnes Unit (AKA Assessment and Treatment Centre) (P85, LPT)",TOTAL GAS & POWER LTD,283720960/22,6430.12
Department of Health,Leicestershire Partnership NHS Trust,06/12/22,Gas,The Beacon,TOTAL GAS & POWER LTD,283720960/22,2704.97
Department of Health,Leicestershire Partnership NHS Trust,06/12/22,Gas,"The Cedars (P19, LPT)",TOTAL GAS & POWER LTD,283720960/22,340.19
Department of Health,Leicestershire Partnership NHS Trust,06/12/22,Gas,"The Grange 1 (P4, LPT)",TOTAL GAS & POWER LTD,283720960/22,358.15
Department of Health,Leicestershire Partnership NHS Trust,06/12/22,Gas,"The Grange 2 (P41, LPT)",TOTAL GAS & POWER LTD,283720960/22,211.99
Department of Health,Leicestershire Partnership NHS Trust,06/12/22,Gas,"The Willows - Cordelia Close (P22, LPT)",TOTAL GAS & POWER LTD,283720960/22,5075.89
Department of Health,Leicestershire Partnership NHS Trust,06/12/22,Gas,"Valentine Centre (P3, LPT)",TOTAL GAS & POWER LTD,283720960/22,2636.35
Department of Health,Leicestershire Partnership NHS Trust,06/12/22,Gas,"Westcotes Group -Westcotes House (P78, LPT)",TOTAL GAS & POWER LTD,283720960/22,1718.22
Department of Health,Leicestershire Partnership NHS Trust,06/12/22,Gas,"Winstanley Drive Health Centre (P8, LPT)",TOTAL GAS & POWER LTD,283720960/22,932.22
Department of Health,Leicestershire Partnership NHS Trust,06/12/22,Payroll Deductions -Salary Sacrifice Cars Scheme,Balance Sheet Collection,TUSKER,67602,36797.55
Department of Health,Leicestershire Partnership NHS Trust,06/12/22,Network Costs - WAN Maint,HIS Infrastructure,VIRGIN MEDIA BUSINESS,262421-203,36024.98
Department of Health,Leicestershire Partnership NHS Trust,06/12/22,Payroll Deductions -Home Electronics 74 Nov 22,Balance Sheet Collection,SME HCI LTD,142763,68874.00
Department of Health,Leicestershire Partnership NHS Trust,07/12/22,CHP Estates Management,Merlyn Vaz Centre (CHP),COMM HLTH PARTNERSHIPS LTD,0060270596,27683.69
Department of Health,Leicestershire Partnership NHS Trust,07/12/22,CHP Estates Management,Merlyn Vaz Centre (CHP),COMM HLTH PARTNERSHIPS LTD,0060270602,24828.16
Department of Health,Leicestershire Partnership NHS Trust,07/12/22,Crs_NHS_LT1y -Resus Inventory Supplied.,Balance Sheet Collection,SUPPLY CHAIN CO LTD,1123196619,29693.59
Department of Health,Leicestershire Partnership NHS Trust,07/12/22,WIP Project Not in BS - Buildings excl Dwellings,Work in Progress,TILBURY DOUGLAS CONSTRUCTION LTD,22120024,296164.68
Department of Health,Leicestershire Partnership NHS Trust,07/12/22,WIP Project Not in BS - Buildings excl Dwellings,Work in Progress,TILBURY DOUGLAS CONSTRUCTION LTD,22120026,85115.40
Department of Health,Leicestershire Partnership NHS Trust,08/12/22,HR / Payroll Services,HR Employment Services,LINCOLNSHIRE PART NHSFT(RP7),L00000572,34400.00
Department of Health,Leicestershire Partnership NHS Trust,08/12/22,Telephone equipment,New Parks Health Centre (PROPCO),VIRGIN MEDIA BUSINESS,60049763,27935.76
Department of Health,Leicestershire Partnership NHS Trust,08/12/22,Telephone equipment,SPA,VIRGIN MEDIA BUSINESS,60049763,10863.90
Department of Health,Leicestershire Partnership NHS Trust,09/12/22,GP IT Expenditure,Area Team,DELL COMPUTERS,7402870262,43800.00
Department of Health,Leicestershire Partnership NHS Trust,09/12/22,GP IT Expenditure,Area Team,DELL COMPUTERS,7402870263,43800.00
Department of Health,Leicestershire Partnership NHS Trust,09/12/22,GP IT Expenditure,Area Team,DELL COMPUTERS,7402870473,43800.00
Department of Health,Leicestershire Partnership NHS Trust,09/12/22,Healthcare Services / Recharges from Non-NHS Bodies,Adult Eating Disorder Collaborative,ELLERN MEDE MOORGATE,OTM0514,36000.00
Department of Health,Leicestershire Partnership NHS Trust,09/12/22,Leased / Hired Vehicles,Autism,LEASEPLAN,510796179,638.96
Department of Health,Leicestershire Partnership NHS Trust,09/12/22,Prep_ LT1y -Prepayments Lease Cars,Balance Sheet Collection,LEASEPLAN,510796179,27026.50
Department of Health,Leicestershire Partnership NHS Trust,09/12/22,Trade_Drs_LT1y -Charitable  Funds Contra Account,Balance Sheet Collection,LEASEPLAN,510796179,30.00
Department of Health,Leicestershire Partnership NHS Trust,09/12/22,Trade_Drs_LT1y -Lease Cars Invoicing Contrl Ac.,Balance Sheet Collection,LEASEPLAN,510796179,3047.92
Department of Health,Leicestershire Partnership NHS Trust,09/12/22,Leased / Hired Vehicles,CHS Inpatient Management,LEASEPLAN,510796179,20.00
Department of Health,Leicestershire Partnership NHS Trust,09/12/22,Leased / Hired Vehicles,CHS Transformation Team,LEASEPLAN,510796179,25.00
Department of Health,Leicestershire Partnership NHS Trust,09/12/22,Leased / Hired Vehicles,COVID 19,LEASEPLAN,510796179,472.36
Department of Health,Leicestershire Partnership NHS Trust,09/12/22,Leased / Hired Vehicles,City Planned Care - East,LEASEPLAN,510796179,45.00
Department of Health,Leicestershire Partnership NHS Trust,09/12/22,Leased / Hired Vehicles,City Planned Care - West,LEASEPLAN,510796179,283.70
Department of Health,Leicestershire Partnership NHS Trust,09/12/22,Leased / Hired Vehicles,Countywide Falls Service,LEASEPLAN,510796179,20.00
Department of Health,Leicestershire Partnership NHS Trust,09/12/22,Leased / Hired Vehicles,East Planned Care - Blaby/Lutterworth,LEASEPLAN,510796179,20.00
Department of Health,Leicestershire Partnership NHS Trust,09/12/22,Leased / Hired Vehicles,Integrated Specialist Palliative Care Team,LEASEPLAN,510796179,318.80
Department of Health,Leicestershire Partnership NHS Trust,09/12/22,Leased / Hired Vehicles,Lead Nurse & Governance Team,LEASEPLAN,510796179,375.00
Department of Health,Leicestershire Partnership NHS Trust,09/12/22,Leased / Hired Vehicles,PIER Team - Early Intervention Services,LEASEPLAN,510796179,636.68
Department of Health,Leicestershire Partnership NHS Trust,09/12/22,Leased / Hired Vehicles,School Age Immunisation and Vaccinations,LEASEPLAN,510796179,1545.16
Department of Health,Leicestershire Partnership NHS Trust,09/12/22,Leased / Hired Vehicles,West Planned Care  - Charnwood Hub,LEASEPLAN,510796179,15.00
Department of Health,Leicestershire Partnership NHS Trust,09/12/22,Leased / Hired Vehicles,West Planned Care  - Hinckley Hub,LEASEPLAN,510796179,89.64
Department of Health,Leicestershire Partnership NHS Trust,09/12/22,GP IT Expenditure,Area Team,PHOENIX SOFTWARE LTD,OP/I952256,34808.40
Department of Health,Leicestershire Partnership NHS Trust,09/12/22,GP IT Expenditure,Area Team,PHOENIX SOFTWARE LTD,OP/I952274,42537.60
Department of Health,Leicestershire Partnership NHS Trust,12/12/22,WIP Project Not in BS - Buildings excl Dwellings,Work in Progress,TILBURY DOUGLAS CONSTRUCTION LTD,22120102,33704.77
Department of Health,Leicestershire Partnership NHS Trust,12/12/22,WIP Project Not in BS - Buildings excl Dwellings,Work in Progress,TILBURY DOUGLAS CONSTRUCTION LTD,22120107,106161.35
Department of Health,Leicestershire Partnership NHS Trust,12/12/22,WIP Project Not in BS - Buildings excl Dwellings,Work in Progress,TILBURY DOUGLAS CONSTRUCTION LTD,22120110,68093.33
Department of Health,Leicestershire Partnership NHS Trust,12/12/22,WIP Project Not in BS - Buildings excl Dwellings,Work in Progress,TILBURY DOUGLAS CONSTRUCTION LTD,22120116,27423.41
Department of Health,Leicestershire Partnership NHS Trust,12/12/22,WIP Project Not in BS - Buildings excl Dwellings,Work in Progress,TILBURY DOUGLAS CONSTRUCTION LTD,22120118,47953.86
Department of Health,Leicestershire Partnership NHS Trust,12/12/22,WIP Project Not in BS - Buildings excl Dwellings,Work in Progress,TILBURY DOUGLAS CONSTRUCTION LTD,22120119,126401.72
Department of Health,Leicestershire Partnership NHS Trust,12/12/22,WIP Project Not in BS - Buildings excl Dwellings,Work in Progress,TILBURY DOUGLAS CONSTRUCTION LTD,22120121,77960.10
Department of Health,Leicestershire Partnership NHS Trust,12/12/22,WIP Project Not in BS - Buildings excl Dwellings,Work in Progress,TILBURY DOUGLAS CONSTRUCTION LTD,22120124,31059.23
Department of Health,Leicestershire Partnership NHS Trust,12/12/22,Insurance Costs,Chief Executives Office,NHS LITIGATION AUTHORITY,SICX411019,192613.10
Department of Health,Leicestershire Partnership NHS Trust,12/12/22,Crs_NHS_LT1y -Resus Inventory Supplied.,Balance Sheet Collection,SUPPLY CHAIN CO LTD,1123202847,27212.02
Department of Health,Leicestershire Partnership NHS Trust,12/12/22,WIP Project Not in BS - I M & T Allocations,Work in Progress,SPIRIT DIGITAL LTD,SCR221105S00003,-28755.04
Department of Health,Leicestershire Partnership NHS Trust,12/12/22,NURSE - BAND 2 - AGENCY,Watermead Ward (Bradgate Unit),HCL NURSING,HNSI0001200,7063.62
Department of Health,Leicestershire Partnership NHS Trust,12/12/22,NURSE - BAND 5 - AGENCY,Watermead Ward (Bradgate Unit),HCL NURSING,HNSI0001200,13830.86
Department of Health,Leicestershire Partnership NHS Trust,12/12/22,Nurse - Band 6 -Agency,CAMHS HUB / CAP,HCL WORKFORCE SOLUTIONS,HWSI0001472,5579.92
Department of Health,Leicestershire Partnership NHS Trust,12/12/22,Nurse - Band 6 -Agency,CAMHS Waiting List Monies,HCL WORKFORCE SOLUTIONS,HWSI0001472,15316.88
Department of Health,Leicestershire Partnership NHS Trust,12/12/22,Nurse - Band 6 -Agency,Crisis Response and Home Treatment,HCL WORKFORCE SOLUTIONS,HWSI0001472,1934.86
Department of Health,Leicestershire Partnership NHS Trust,12/12/22,Nurse - Band 6 -Agency,AMH - Central Access Point,HCL NURSING,HNSI0001197,2735.49
Department of Health,Leicestershire Partnership NHS Trust,12/12/22,Nurse - Band 7 - Agency,Adult County- East Leicester CMHT,HCL NURSING,HNSI0001197,1365.26
Department of Health,Leicestershire Partnership NHS Trust,12/12/22,NURSE - BAND 2 - AGENCY,Agnes Unit,HCL NURSING,HNSI0001197,21757.20
Department of Health,Leicestershire Partnership NHS Trust,12/12/22,NURSE - BAND 5 - AGENCY,Agnes Unit,HCL NURSING,HNSI0001197,18791.05
Department of Health,Leicestershire Partnership NHS Trust,12/12/22,NURSE - BAND 2 - AGENCY,Ashby Ward (Bradgate Unit),HCL NURSING,HNSI0001197,4787.93
Department of Health,Leicestershire Partnership NHS Trust,12/12/22,NURSE - BAND 5 - AGENCY,Ashby Ward (Bradgate Unit),HCL NURSING,HNSI0001197,10220.50
Department of Health,Leicestershire Partnership NHS Trust,12/12/22,NURSE - BAND 2 - AGENCY,Beaumont Ward - Bradgate Unit,HCL NURSING,HNSI0001197,1109.88
Department of Health,Leicestershire Partnership NHS Trust,12/12/22,NURSE - BAND 5 - AGENCY,Beaumont Ward - Bradgate Unit,HCL NURSING,HNSI0001197,11031.09
Department of Health,Leicestershire Partnership NHS Trust,12/12/22,NURSE - BAND 2 - AGENCY,Belvoir Psychiatric Intensive Care Unit,HCL NURSING,HNSI0001197,2063.33
Department of Health,Leicestershire Partnership NHS Trust,12/12/22,NURSE - BAND 5 - AGENCY,Belvoir Psychiatric Intensive Care Unit,HCL NURSING,HNSI0001197,4867.45
Department of Health,Leicestershire Partnership NHS Trust,12/12/22,NURSE - BAND 2 - AGENCY,Bosworth Ward - Bradgate Unit,HCL NURSING,HNSI0001197,2056.16
Department of Health,Leicestershire Partnership NHS Trust,12/12/22,NURSE - BAND 5 - AGENCY,Bosworth Ward - Bradgate Unit,HCL NURSING,HNSI0001197,9418.76
Department of Health,Leicestershire Partnership NHS Trust,12/12/22,NURSE - BAND 2 - AGENCY,Cedar (Willows),HCL NURSING,HNSI0001197,2002.77
Department of Health,Leicestershire Partnership NHS Trust,12/12/22,NURSE - BAND 5 - AGENCY,Cedar (Willows),HCL NURSING,HNSI0001197,974.89
Department of Health,Leicestershire Partnership NHS Trust,12/12/22,Nurse - Band 6 -Agency,City West CMHT MHSOP,HCL NURSING,HNSI0001197,1073.25
Department of Health,Leicestershire Partnership NHS Trust,12/12/22,NURSE - BAND 2 - AGENCY,Coleman Ward,HCL NURSING,HNSI0001197,9198.81
Department of Health,Leicestershire Partnership NHS Trust,12/12/22,NURSE - BAND 5 - AGENCY,Coleman Ward,HCL NURSING,HNSI0001197,1504.36
Department of Health,Leicestershire Partnership NHS Trust,12/12/22,NURSE - BAND 5 - AGENCY,Crisis Resolution,HCL NURSING,HNSI0001197,1812.16
Department of Health,Leicestershire Partnership NHS Trust,12/12/22,NURSE - BAND 2 - AGENCY,Griffin Ward (HPC),HCL NURSING,HNSI0001197,4137.70
Department of Health,Leicestershire Partnership NHS Trust,12/12/22,NURSE - BAND 5 - AGENCY,Griffin Ward (HPC),HCL NURSING,HNSI0001197,4773.54
Department of Health,Leicestershire Partnership NHS Trust,12/12/22,NURSE - BAND 2 - AGENCY,Gwendolen Ward,HCL NURSING,HNSI0001197,5188.71
Department of Health,Leicestershire Partnership NHS Trust,12/12/22,NURSE - BAND 5 - AGENCY,Gwendolen Ward,HCL NURSING,HNSI0001197,1610.54
Department of Health,Leicestershire Partnership NHS Trust,12/12/22,NURSE - BAND 2 - AGENCY,Heather Ward,HCL NURSING,HNSI0001197,2133.75
Department of Health,Leicestershire Partnership NHS Trust,12/12/22,NURSE - BAND 5 - AGENCY,Heather Ward,HCL NURSING,HNSI0001197,6608.59
Department of Health,Leicestershire Partnership NHS Trust,12/12/22,NURSE - BAND 2 - AGENCY,Kirby Ward,HCL NURSING,HNSI0001197,5069.70
Department of Health,Leicestershire Partnership NHS Trust,12/12/22,NURSE - BAND 5 - AGENCY,Kirby Ward,HCL NURSING,HNSI0001197,1362.07
Department of Health,Leicestershire Partnership NHS Trust,12/12/22,NURSE - BAND 2 - AGENCY,Maple Ward,HCL NURSING,HNSI0001197,1527.37
Department of Health,Leicestershire Partnership NHS Trust,12/12/22,NURSE - BAND 5 - AGENCY,Maple Ward,HCL NURSING,HNSI0001197,1021.39
Department of Health,Leicestershire Partnership NHS Trust,12/12/22,Nurse - Band 6 -Agency,Mental Health Liaison Team,HCL NURSING,HNSI0001197,1773.46
Department of Health,Leicestershire Partnership NHS Trust,12/12/22,NURSE - BAND 2 - AGENCY,Mill Lodge,HCL NURSING,HNSI0001197,2979.91
Department of Health,Leicestershire Partnership NHS Trust,12/12/22,NURSE - BAND 5 - AGENCY,Mill Lodge,HCL NURSING,HNSI0001197,1555.05
Department of Health,Leicestershire Partnership NHS Trust,12/12/22,NURSE - BAND 2 - AGENCY,Phoenix Ward (HPC),HCL NURSING,HNSI0001197,1519.79
Department of Health,Leicestershire Partnership NHS Trust,12/12/22,NURSE - BAND 5 - AGENCY,Phoenix Ward (HPC),HCL NURSING,HNSI0001197,2395.82
Department of Health,Leicestershire Partnership NHS Trust,12/12/22,NURSE - BAND 2 - AGENCY,Place Of Safety Assessment Unit,HCL NURSING,HNSI0001197,364.01
Department of Health,Leicestershire Partnership NHS Trust,12/12/22,NURSE - BAND 5 - AGENCY,Place Of Safety Assessment Unit,HCL NURSING,HNSI0001197,514.85
Department of Health,Leicestershire Partnership NHS Trust,12/12/22,NURSE - BAND 2 - AGENCY,Stewart House,HCL NURSING,HNSI0001197,573.07
Department of Health,Leicestershire Partnership NHS Trust,12/12/22,NURSE - BAND 5 - AGENCY,Stewart House,HCL NURSING,HNSI0001197,1470.93
Department of Health,Leicestershire Partnership NHS Trust,12/12/22,NURSE - BAND 2 - AGENCY,Sycamore (Willows),HCL NURSING,HNSI0001197,1851.87
Department of Health,Leicestershire Partnership NHS Trust,12/12/22,NURSE - BAND 5 - AGENCY,Sycamore (Willows),HCL NURSING,HNSI0001197,6584.75
Department of Health,Leicestershire Partnership NHS Trust,12/12/22,NURSE - BAND 2 - AGENCY,Thornton Ward - Bradgate Unit,HCL NURSING,HNSI0001197,1298.70
Department of Health,Leicestershire Partnership NHS Trust,12/12/22,NURSE - BAND 5 - AGENCY,Thornton Ward - Bradgate Unit,HCL NURSING,HNSI0001197,2246.42
Department of Health,Leicestershire Partnership NHS Trust,12/12/22,NURSE - BAND 2 - AGENCY,Urgent Care Hub,HCL NURSING,HNSI0001197,247.06
Department of Health,Leicestershire Partnership NHS Trust,12/12/22,NURSE - BAND 2 - AGENCY,Welford Ward,HCL NURSING,HNSI0001197,2450.13
Department of Health,Leicestershire Partnership NHS Trust,12/12/22,NURSE - BAND 5 - AGENCY,Welford Ward,HCL NURSING,HNSI0001197,697.65
Department of Health,Leicestershire Partnership NHS Trust,12/12/22,NURSE - BAND 2 - AGENCY,CAMHS ED Team,HCL NURSING,HNSI0001199,702.72
Department of Health,Leicestershire Partnership NHS Trust,12/12/22,NURSE - BAND 2 - AGENCY,CAMHS Inpatient Service,HCL NURSING,HNSI0001199,3928.65
Department of Health,Leicestershire Partnership NHS Trust,12/12/22,NURSE - BAND 5 - AGENCY,CAMHS Inpatient Service,HCL NURSING,HNSI0001199,8734.69
Department of Health,Leicestershire Partnership NHS Trust,12/12/22,NURSE - BAND 2 - AGENCY,CAMHS Learning Disabilities and Outreach Team,HCL NURSING,HNSI0001199,1484.89
Department of Health,Leicestershire Partnership NHS Trust,12/12/22,Nurse - Band 6 -Agency,CAMHS Waiting List Monies,HCL NURSING,HNSI0001199,6616.96
Department of Health,Leicestershire Partnership NHS Trust,12/12/22,NURSE - BAND 2 - AGENCY,Langley Ward ED Inpatient Service,HCL NURSING,HNSI0001199,2569.50
Department of Health,Leicestershire Partnership NHS Trust,12/12/22,NURSE - BAND 5 - AGENCY,Langley Ward ED Inpatient Service,HCL NURSING,HNSI0001199,1363.70
Department of Health,Leicestershire Partnership NHS Trust,13/12/22,Healthcare Services / Recharges from Non-NHS Bodies,Adult Eating Disorder Collaborative,PRIORY GROUP,301NOV22LECAED,72529.20
Department of Health,Leicestershire Partnership NHS Trust,13/12/22,Payroll Deductions -NEST EES Pensions,Balance Sheet Collection,NEST,P08DEDS-313/2022,15856.84
Department of Health,Leicestershire Partnership NHS Trust,13/12/22,Payroll Deductions -NEST ERS Pensions,Balance Sheet Collection,NEST,P08DEDS-313/2022,11886.35
Department of Health,Leicestershire Partnership NHS Trust,14/12/22,WIP Project Not in BS - I M & T Allocations,Work in Progress,SPIRIT DIGITAL LTD,SIN221205SDI00038,28755.04
Department of Health,Leicestershire Partnership NHS Trust,14/12/22,NURSE - BAND 2 - AGENCY,Beechwood Ward,HCL NURSING,HNSI0001189,3233.01
Department of Health,Leicestershire Partnership NHS Trust,14/12/22,NURSE - BAND 5 - AGENCY,Beechwood Ward,HCL NURSING,HNSI0001189,2362.78
Department of Health,Leicestershire Partnership NHS Trust,14/12/22,NURSE - BAND 2 - AGENCY,CHS Surge Ward,HCL NURSING,HNSI0001189,10534.00
Department of Health,Leicestershire Partnership NHS Trust,14/12/22,NURSE - BAND 5 - AGENCY,CHS Surge Ward,HCL NURSING,HNSI0001189,11047.14
Department of Health,Leicestershire Partnership NHS Trust,14/12/22,NURSE - BAND 5 - AGENCY,City Planned Care - East,HCL NURSING,HNSI0001189,11911.25
Department of Health,Leicestershire Partnership NHS Trust,14/12/22,NURSE - BAND 5 - AGENCY,City Planned Care - West,HCL NURSING,HNSI0001189,14171.13
Department of Health,Leicestershire Partnership NHS Trust,14/12/22,NURSE - BAND 2 - AGENCY,Clarendon Ward,HCL NURSING,HNSI0001189,5606.76
Department of Health,Leicestershire Partnership NHS Trust,14/12/22,NURSE - BAND 5 - AGENCY,Clarendon Ward,HCL NURSING,HNSI0001189,4696.70
Department of Health,Leicestershire Partnership NHS Trust,14/12/22,NURSE - BAND 2 - AGENCY,Coalville Snibston Ward,HCL NURSING,HNSI0001189,3244.69
Department of Health,Leicestershire Partnership NHS Trust,14/12/22,NURSE - BAND 5 - AGENCY,Coalville Snibston Ward,HCL NURSING,HNSI0001189,4048.73
Department of Health,Leicestershire Partnership NHS Trust,14/12/22,NURSE - BAND 2 - AGENCY,Coalville Ward 2,HCL NURSING,HNSI0001189,4306.22
Department of Health,Leicestershire Partnership NHS Trust,14/12/22,NURSE - BAND 5 - AGENCY,Coalville Ward 2,HCL NURSING,HNSI0001189,3933.69
Department of Health,Leicestershire Partnership NHS Trust,14/12/22,NURSE - BAND 2 - AGENCY,Dalgliesh Ward,HCL NURSING,HNSI0001189,1924.00
Department of Health,Leicestershire Partnership NHS Trust,14/12/22,NURSE - BAND 5 - AGENCY,Dalgliesh Ward,HCL NURSING,HNSI0001189,2755.05
Department of Health,Leicestershire Partnership NHS Trust,14/12/22,NURSE - BAND 5 - AGENCY,"East Planned Care - Oadby,Wigston & Harborough",HCL NURSING,HNSI0001189,1424.90
Department of Health,Leicestershire Partnership NHS Trust,14/12/22,NURSE - BAND 2 - AGENCY,H&B Comm Hosp East Ward,HCL NURSING,HNSI0001189,3074.85
Department of Health,Leicestershire Partnership NHS Trust,14/12/22,NURSE - BAND 5 - AGENCY,H&B Comm Hosp East Ward,HCL NURSING,HNSI0001189,5955.25
Department of Health,Leicestershire Partnership NHS Trust,14/12/22,NURSE - BAND 2 - AGENCY,H&B Comm Hosp North Ward,HCL NURSING,HNSI0001189,1510.95
Department of Health,Leicestershire Partnership NHS Trust,14/12/22,NURSE - BAND 2 - AGENCY,Lough Swithland Ward,HCL NURSING,HNSI0001189,2901.71
Department of Health,Leicestershire Partnership NHS Trust,14/12/22,NURSE - BAND 5 - AGENCY,Lough Swithland Ward,HCL NURSING,HNSI0001189,514.85
Department of Health,Leicestershire Partnership NHS Trust,14/12/22,NURSE - BAND 2 - AGENCY,Rutland Ward Nursing,HCL NURSING,HNSI0001189,4156.67
Department of Health,Leicestershire Partnership NHS Trust,14/12/22,NURSE - BAND 5 - AGENCY,Rutland Ward Nursing,HCL NURSING,HNSI0001189,5586.82
Department of Health,Leicestershire Partnership NHS Trust,14/12/22,NURSE - BAND 2 - AGENCY,St Lukes Stroke Ward,HCL NURSING,HNSI0001189,5501.37
Department of Health,Leicestershire Partnership NHS Trust,14/12/22,NURSE - BAND 5 - AGENCY,St Lukes Stroke Ward,HCL NURSING,HNSI0001189,945.80
Department of Health,Leicestershire Partnership NHS Trust,14/12/22,NURSE - BAND 2 - AGENCY,St Lukes Ward 3,HCL NURSING,HNSI0001189,2561.49
Department of Health,Leicestershire Partnership NHS Trust,14/12/22,NURSE - BAND 5 - AGENCY,St Lukes Ward 3,HCL NURSING,HNSI0001189,1113.67
Department of Health,Leicestershire Partnership NHS Trust,14/12/22,NURSE - BAND 2 - AGENCY,Beechwood Ward,HCL NURSING,HNSI0001194,2899.15
Department of Health,Leicestershire Partnership NHS Trust,14/12/22,NURSE - BAND 5 - AGENCY,Beechwood Ward,HCL NURSING,HNSI0001194,2411.04
Department of Health,Leicestershire Partnership NHS Trust,14/12/22,NURSE - BAND 2 - AGENCY,CHS Surge Ward,HCL NURSING,HNSI0001194,12395.81
Department of Health,Leicestershire Partnership NHS Trust,14/12/22,NURSE - BAND 5 - AGENCY,CHS Surge Ward,HCL NURSING,HNSI0001194,8055.24
Department of Health,Leicestershire Partnership NHS Trust,14/12/22,NURSE - BAND 5 - AGENCY,City Planned Care - East,HCL NURSING,HNSI0001194,8516.65
Department of Health,Leicestershire Partnership NHS Trust,14/12/22,NURSE - BAND 5 - AGENCY,City Planned Care - West,HCL NURSING,HNSI0001194,9361.77
Department of Health,Leicestershire Partnership NHS Trust,14/12/22,NURSE - BAND 2 - AGENCY,Clarendon Ward,HCL NURSING,HNSI0001194,5318.39
Department of Health,Leicestershire Partnership NHS Trust,14/12/22,NURSE - BAND 5 - AGENCY,Clarendon Ward,HCL NURSING,HNSI0001194,3091.06
Department of Health,Leicestershire Partnership NHS Trust,14/12/22,NURSE - BAND 2 - AGENCY,Coalville Snibston Ward,HCL NURSING,HNSI0001194,3605.70
Department of Health,Leicestershire Partnership NHS Trust,14/12/22,NURSE - BAND 5 - AGENCY,Coalville Snibston Ward,HCL NURSING,HNSI0001194,1312.85
Department of Health,Leicestershire Partnership NHS Trust,14/12/22,NURSE - BAND 2 - AGENCY,Coalville Ward 2,HCL NURSING,HNSI0001194,4171.85
Department of Health,Leicestershire Partnership NHS Trust,14/12/22,NURSE - BAND 5 - AGENCY,Coalville Ward 2,HCL NURSING,HNSI0001194,4349.59
Department of Health,Leicestershire Partnership NHS Trust,14/12/22,NURSE - BAND 2 - AGENCY,Dalgliesh Ward,HCL NURSING,HNSI0001194,5076.74
Department of Health,Leicestershire Partnership NHS Trust,14/12/22,NURSE - BAND 5 - AGENCY,Dalgliesh Ward,HCL NURSING,HNSI0001194,2014.58
Department of Health,Leicestershire Partnership NHS Trust,14/12/22,NURSE - BAND 5 - AGENCY,"East Planned Care - Oadby,Wigston & Harborough",HCL NURSING,HNSI0001194,1556.29
Department of Health,Leicestershire Partnership NHS Trust,14/12/22,NURSE - BAND 2 - AGENCY,H&B Comm Hosp East Ward,HCL NURSING,HNSI0001194,3840.07
Department of Health,Leicestershire Partnership NHS Trust,14/12/22,NURSE - BAND 5 - AGENCY,H&B Comm Hosp East Ward,HCL NURSING,HNSI0001194,5553.56
Department of Health,Leicestershire Partnership NHS Trust,14/12/22,NURSE - BAND 2 - AGENCY,H&B Comm Hosp North Ward,HCL NURSING,HNSI0001194,2469.41
Department of Health,Leicestershire Partnership NHS Trust,14/12/22,NURSE - BAND 5 - AGENCY,H&B Comm Hosp North Ward,HCL NURSING,HNSI0001194,2064.19
Department of Health,Leicestershire Partnership NHS Trust,14/12/22,NURSE - BAND 5 - AGENCY,Lough Swithland Ward,HCL NURSING,HNSI0001194,6600.41
Department of Health,Leicestershire Partnership NHS Trust,14/12/22,NURSE - BAND 2 - AGENCY,Rutland Ward Nursing,HCL NURSING,HNSI0001194,4616.51
Department of Health,Leicestershire Partnership NHS Trust,14/12/22,NURSE - BAND 5 - AGENCY,Rutland Ward Nursing,HCL NURSING,HNSI0001194,1398.40
Department of Health,Leicestershire Partnership NHS Trust,14/12/22,NURSE - BAND 2 - AGENCY,St Lukes Stroke Ward,HCL NURSING,HNSI0001194,6868.62
Department of Health,Leicestershire Partnership NHS Trust,14/12/22,NURSE - BAND 5 - AGENCY,St Lukes Stroke Ward,HCL NURSING,HNSI0001194,772.25
Department of Health,Leicestershire Partnership NHS Trust,14/12/22,NURSE - BAND 2 - AGENCY,St Lukes Ward 3,HCL NURSING,HNSI0001194,1065.92
Department of Health,Leicestershire Partnership NHS Trust,14/12/22,NURSE - BAND 5 - AGENCY,St Lukes Ward 3,HCL NURSING,HNSI0001194,796.97
Department of Health,Leicestershire Partnership NHS Trust,14/12/22,NURSE - BAND 2 - AGENCY,Beechwood Ward,HCL NURSING,HNSI0001198,6020.66
Department of Health,Leicestershire Partnership NHS Trust,14/12/22,NURSE - BAND 5 - AGENCY,Beechwood Ward,HCL NURSING,HNSI0001198,2806.50
Department of Health,Leicestershire Partnership NHS Trust,14/12/22,NURSE - BAND 5 - AGENCY,CHS Surge Ward,HCL NURSING,HNSI0001198,15148.82
Department of Health,Leicestershire Partnership NHS Trust,14/12/22,NURSE - BAND 5 - AGENCY,City Planned Care - East,HCL NURSING,HNSI0001198,11561.57
Department of Health,Leicestershire Partnership NHS Trust,14/12/22,NURSE - BAND 5 - AGENCY,City Planned Care - West,HCL NURSING,HNSI0001198,13652.74
Department of Health,Leicestershire Partnership NHS Trust,14/12/22,NURSE - BAND 2 - AGENCY,Clarendon Ward,HCL NURSING,HNSI0001198,7049.48
Department of Health,Leicestershire Partnership NHS Trust,14/12/22,NURSE - BAND 5 - AGENCY,Clarendon Ward,HCL NURSING,HNSI0001198,4375.15
Department of Health,Leicestershire Partnership NHS Trust,14/12/22,NURSE - BAND 2 - AGENCY,Coalville Snibston Ward,HCL NURSING,HNSI0001198,5181.17
Department of Health,Leicestershire Partnership NHS Trust,14/12/22,NURSE - BAND 5 - AGENCY,Coalville Snibston Ward,HCL NURSING,HNSI0001198,2527.95
Department of Health,Leicestershire Partnership NHS Trust,14/12/22,NURSE - BAND 2 - AGENCY,Coalville Ward 2,HCL NURSING,HNSI0001198,3928.12
Department of Health,Leicestershire Partnership NHS Trust,14/12/22,NURSE - BAND 5 - AGENCY,Coalville Ward 2,HCL NURSING,HNSI0001198,5838.79
Department of Health,Leicestershire Partnership NHS Trust,14/12/22,NURSE - BAND 2 - AGENCY,Dalgliesh Ward,HCL NURSING,HNSI0001198,2776.06
Department of Health,Leicestershire Partnership NHS Trust,14/12/22,NURSE - BAND 5 - AGENCY,Dalgliesh Ward,HCL NURSING,HNSI0001198,3814.25
Department of Health,Leicestershire Partnership NHS Trust,14/12/22,NURSE - BAND 5 - AGENCY,"East Planned Care - Oadby,Wigston & Harborough",HCL NURSING,HNSI0001198,1036.17
Department of Health,Leicestershire Partnership NHS Trust,14/12/22,NURSE - BAND 2 - AGENCY,H&B Comm Hosp East Ward,HCL NURSING,HNSI0001198,5161.68
Department of Health,Leicestershire Partnership NHS Trust,14/12/22,NURSE - BAND 5 - AGENCY,H&B Comm Hosp East Ward,HCL NURSING,HNSI0001198,3605.68
Department of Health,Leicestershire Partnership NHS Trust,14/12/22,NURSE - BAND 2 - AGENCY,H&B Comm Hosp North Ward,HCL NURSING,HNSI0001198,884.84
Department of Health,Leicestershire Partnership NHS Trust,14/12/22,NURSE - BAND 5 - AGENCY,H&B Comm Hosp North Ward,HCL NURSING,HNSI0001198,2422.40
Department of Health,Leicestershire Partnership NHS Trust,14/12/22,NURSE - BAND 2 - AGENCY,Lough Swithland Ward,HCL NURSING,HNSI0001198,1763.65
Department of Health,Leicestershire Partnership NHS Trust,14/12/22,NURSE - BAND 5 - AGENCY,Lough Swithland Ward,HCL NURSING,HNSI0001198,3688.95
Department of Health,Leicestershire Partnership NHS Trust,14/12/22,NURSE - BAND 2 - AGENCY,Rutland Ward Nursing,HCL NURSING,HNSI0001198,3514.75
Department of Health,Leicestershire Partnership NHS Trust,14/12/22,NURSE - BAND 5 - AGENCY,Rutland Ward Nursing,HCL NURSING,HNSI0001198,4503.08
Department of Health,Leicestershire Partnership NHS Trust,14/12/22,NURSE - BAND 2 - AGENCY,St Lukes Stroke Ward,HCL NURSING,HNSI0001198,5716.07
Department of Health,Leicestershire Partnership NHS Trust,14/12/22,NURSE - BAND 5 - AGENCY,St Lukes Stroke Ward,HCL NURSING,HNSI0001198,3603.19
Department of Health,Leicestershire Partnership NHS Trust,14/12/22,NURSE - BAND 2 - AGENCY,St Lukes Ward 3,HCL NURSING,HNSI0001198,1639.90
Department of Health,Leicestershire Partnership NHS Trust,14/12/22,NURSE - BAND 5 - AGENCY,St Lukes Ward 3,HCL NURSING,HNSI0001198,2343.26
Department of Health,Leicestershire Partnership NHS Trust,14/12/22,NURSE - BAND 5 - AGENCY,West Planned Care  - Hinckley Hub,HCL NURSING,HNSI0001198,542.36
Department of Health,Leicestershire Partnership NHS Trust,14/12/22,Medical Equipment Repairs / Maintenance,Community Health Services Management,SPIRIT DIGITAL LTD,SIN221205SDI00039,43740.00
Department of Health,Leicestershire Partnership NHS Trust,14/12/22,GP IT Expenditure,Area Team,DELL COMPUTERS,7402874859,43800.00
Department of Health,Leicestershire Partnership NHS Trust,14/12/22,Professional & Technical Agency,LLR Shared Care Record Programme,SYNANETICS LTD,INV-00417,60000.00
Department of Health,Leicestershire Partnership NHS Trust,14/12/22,Professional & Technical Agency,LLR Shared Care Record Programme,SYNANETICS LTD,INV-00416,60000.00
Department of Health,Leicestershire Partnership NHS Trust,14/12/22,Professional & Technical Agency,LLR Shared Care Record Programme,SYNANETICS LTD,INV-00415,57600.00
Department of Health,Leicestershire Partnership NHS Trust,14/12/22,Professional & Technical Agency,LLR Shared Care Record Programme,SYNANETICS LTD,INV-00414,57600.00
Department of Health,Leicestershire Partnership NHS Trust,14/12/22,Professional & Technical Agency,LLR Shared Care Record Programme,SYNANETICS LTD,INV-00413,108000.00
Department of Health,Leicestershire Partnership NHS Trust,16/12/22,Nurse - Band 6 -Agency,CAMHS HUB / CAP,HCL WORKFORCE SOLUTIONS,HWSI0001482,5157.45
Department of Health,Leicestershire Partnership NHS Trust,16/12/22,Nurse - Band 6 -Agency,CAMHS Waiting List Monies,HCL WORKFORCE SOLUTIONS,HWSI0001482,18589.86
Department of Health,Leicestershire Partnership NHS Trust,16/12/22,Nurse - Band 6 -Agency,Crisis Response and Home Treatment,HCL WORKFORCE SOLUTIONS,HWSI0001482,1519.41
Department of Health,Leicestershire Partnership NHS Trust,16/12/22,NURSE - BAND 2 - AGENCY,CAMHS Inpatient Service,HCL NURSING,HNSI0001207,3747.38
Department of Health,Leicestershire Partnership NHS Trust,16/12/22,NURSE - BAND 5 - AGENCY,CAMHS Inpatient Service,HCL NURSING,HNSI0001207,7625.30
Department of Health,Leicestershire Partnership NHS Trust,16/12/22,NURSE - BAND 2 - AGENCY,CAMHS Learning Disabilities and Outreach Team,HCL NURSING,HNSI0001207,2080.08
Department of Health,Leicestershire Partnership NHS Trust,16/12/22,Nurse - Band 6 -Agency,CAMHS Waiting List Monies,HCL NURSING,HNSI0001207,6832.93
Department of Health,Leicestershire Partnership NHS Trust,16/12/22,NURSE - BAND 2 - AGENCY,Langley Ward ED Inpatient Service,HCL NURSING,HNSI0001207,580.11
Department of Health,Leicestershire Partnership NHS Trust,16/12/22,NURSE - BAND 5 - AGENCY,Langley Ward ED Inpatient Service,HCL NURSING,HNSI0001207,2706.75
Department of Health,Leicestershire Partnership NHS Trust,16/12/22,Nurse - Band 6 -Agency,AMH - Central Access Point,HCL WORKFORCE SOLUTIONS,HWSI0001481,4532.78
Department of Health,Leicestershire Partnership NHS Trust,16/12/22,Nurse - Band 6 -Agency,Adult City Central CMHT - St Peters,HCL WORKFORCE SOLUTIONS,HWSI0001481,274.82
Department of Health,Leicestershire Partnership NHS Trust,16/12/22,NURSE - BAND 5 - AGENCY,Adult City East CMHT - Merlyn Vaz,HCL WORKFORCE SOLUTIONS,HWSI0001481,329.84
Department of Health,Leicestershire Partnership NHS Trust,16/12/22,Nurse - Band 6 -Agency,Adult City East CMHT - Merlyn Vaz,HCL WORKFORCE SOLUTIONS,HWSI0001481,5800.89
Department of Health,Leicestershire Partnership NHS Trust,16/12/22,Nurse - Band 6 -Agency,Adult County Charnwood CMHT - Loughborough Base,HCL WORKFORCE SOLUTIONS,HWSI0001481,1711.92
Department of Health,Leicestershire Partnership NHS Trust,16/12/22,NURSE - BAND 5 - AGENCY,Beaumont Ward - Bradgate Unit,HCL WORKFORCE SOLUTIONS,HWSI0001481,732.89
Department of Health,Leicestershire Partnership NHS Trust,16/12/22,NURSE - BAND 5 - AGENCY,Belvoir Psychiatric Intensive Care Unit,HCL WORKFORCE SOLUTIONS,HWSI0001481,329.84
Department of Health,Leicestershire Partnership NHS Trust,16/12/22,Nurse - Band 6 -Agency,Crisis Resolution,HCL WORKFORCE SOLUTIONS,HWSI0001481,12949.67
Department of Health,Leicestershire Partnership NHS Trust,16/12/22,Nurse - Band 6 -Agency,AMH - Central Access Point,HCL NURSING,HNSI0001205,2558.46
Department of Health,Leicestershire Partnership NHS Trust,16/12/22,Nurse - Band 7 - Agency,Adult County- East Leicester CMHT,HCL NURSING,HNSI0001205,1365.26
Department of Health,Leicestershire Partnership NHS Trust,16/12/22,NURSE - BAND 2 - AGENCY,Agnes Unit,HCL NURSING,HNSI0001205,22037.20
Department of Health,Leicestershire Partnership NHS Trust,16/12/22,NURSE - BAND 5 - AGENCY,Agnes Unit,HCL NURSING,HNSI0001205,16442.95
Department of Health,Leicestershire Partnership NHS Trust,16/12/22,NURSE - BAND 2 - AGENCY,Ashby Ward (Bradgate Unit),HCL NURSING,HNSI0001205,6035.02
Department of Health,Leicestershire Partnership NHS Trust,16/12/22,NURSE - BAND 5 - AGENCY,Ashby Ward (Bradgate Unit),HCL NURSING,HNSI0001205,14956.94
Department of Health,Leicestershire Partnership NHS Trust,16/12/22,NURSE - BAND 2 - AGENCY,Beaumont Ward - Bradgate Unit,HCL NURSING,HNSI0001205,474.26
Department of Health,Leicestershire Partnership NHS Trust,16/12/22,NURSE - BAND 5 - AGENCY,Beaumont Ward - Bradgate Unit,HCL NURSING,HNSI0001205,9051.58
Department of Health,Leicestershire Partnership NHS Trust,16/12/22,NURSE - BAND 2 - AGENCY,Belvoir Psychiatric Intensive Care Unit,HCL NURSING,HNSI0001205,4423.67
Department of Health,Leicestershire Partnership NHS Trust,16/12/22,NURSE - BAND 5 - AGENCY,Belvoir Psychiatric Intensive Care Unit,HCL NURSING,HNSI0001205,4918.41
Department of Health,Leicestershire Partnership NHS Trust,16/12/22,NURSE - BAND 2 - AGENCY,Bosworth Ward - Bradgate Unit,HCL NURSING,HNSI0001205,1426.45
Department of Health,Leicestershire Partnership NHS Trust,16/12/22,NURSE - BAND 5 - AGENCY,Bosworth Ward - Bradgate Unit,HCL NURSING,HNSI0001205,8451.37
Department of Health,Leicestershire Partnership NHS Trust,16/12/22,NURSE - BAND 2 - AGENCY,Cedar (Willows),HCL NURSING,HNSI0001205,3029.82
Department of Health,Leicestershire Partnership NHS Trust,16/12/22,NURSE - BAND 5 - AGENCY,Cedar (Willows),HCL NURSING,HNSI0001205,2074.89
Department of Health,Leicestershire Partnership NHS Trust,16/12/22,Nurse - Band 6 -Agency,City West CMHT MHSOP,HCL NURSING,HNSI0001205,1073.25
Department of Health,Leicestershire Partnership NHS Trust,16/12/22,NURSE - BAND 2 - AGENCY,Coleman Ward,HCL NURSING,HNSI0001205,8882.25
Department of Health,Leicestershire Partnership NHS Trust,16/12/22,NURSE - BAND 5 - AGENCY,Coleman Ward,HCL NURSING,HNSI0001205,2116.87
Department of Health,Leicestershire Partnership NHS Trust,16/12/22,NURSE - BAND 5 - AGENCY,Crisis Resolution,HCL NURSING,HNSI0001205,453.04
Department of Health,Leicestershire Partnership NHS Trust,16/12/22,NURSE - BAND 2 - AGENCY,Griffin Ward (HPC),HCL NURSING,HNSI0001205,5916.64
Department of Health,Leicestershire Partnership NHS Trust,16/12/22,NURSE - BAND 5 - AGENCY,Griffin Ward (HPC),HCL NURSING,HNSI0001205,8225.36
Department of Health,Leicestershire Partnership NHS Trust,16/12/22,NURSE - BAND 2 - AGENCY,Gwendolen Ward,HCL NURSING,HNSI0001205,4415.34
Department of Health,Leicestershire Partnership NHS Trust,16/12/22,NURSE - BAND 5 - AGENCY,Gwendolen Ward,HCL NURSING,HNSI0001205,2650.85
Department of Health,Leicestershire Partnership NHS Trust,16/12/22,NURSE - BAND 2 - AGENCY,Heather Ward,HCL NURSING,HNSI0001205,1758.77
Department of Health,Leicestershire Partnership NHS Trust,16/12/22,NURSE - BAND 5 - AGENCY,Heather Ward,HCL NURSING,HNSI0001205,5394.75
Department of Health,Leicestershire Partnership NHS Trust,16/12/22,NURSE - BAND 2 - AGENCY,Kirby Ward,HCL NURSING,HNSI0001205,3912.14
Department of Health,Leicestershire Partnership NHS Trust,16/12/22,NURSE - BAND 5 - AGENCY,Kirby Ward,HCL NURSING,HNSI0001205,843.31
Department of Health,Leicestershire Partnership NHS Trust,16/12/22,NURSE - BAND 2 - AGENCY,Maple Ward,HCL NURSING,HNSI0001205,1739.55
Department of Health,Leicestershire Partnership NHS Trust,16/12/22,NURSE - BAND 5 - AGENCY,Maple Ward,HCL NURSING,HNSI0001205,3932.63
Department of Health,Leicestershire Partnership NHS Trust,16/12/22,Nurse - Band 6 -Agency,Mental Health Liaison Team,HCL NURSING,HNSI0001205,1773.46
Department of Health,Leicestershire Partnership NHS Trust,16/12/22,NURSE - BAND 2 - AGENCY,Mill Lodge,HCL NURSING,HNSI0001205,1106.24
Department of Health,Leicestershire Partnership NHS Trust,16/12/22,NURSE - BAND 5 - AGENCY,Mill Lodge,HCL NURSING,HNSI0001205,650.65
Department of Health,Leicestershire Partnership NHS Trust,16/12/22,NURSE - BAND 2 - AGENCY,Phoenix Ward (HPC),HCL NURSING,HNSI0001205,1461.56
Department of Health,Leicestershire Partnership NHS Trust,16/12/22,NURSE - BAND 5 - AGENCY,Phoenix Ward (HPC),HCL NURSING,HNSI0001205,2351.45
Department of Health,Leicestershire Partnership NHS Trust,16/12/22,NURSE - BAND 2 - AGENCY,Place Of Safety Assessment Unit,HCL NURSING,HNSI0001205,1137.13
Department of Health,Leicestershire Partnership NHS Trust,16/12/22,NURSE - BAND 5 - AGENCY,Place Of Safety Assessment Unit,HCL NURSING,HNSI0001205,453.04
Department of Health,Leicestershire Partnership NHS Trust,16/12/22,NURSE - BAND 2 - AGENCY,Stewart House,HCL NURSING,HNSI0001205,740.33
Department of Health,Leicestershire Partnership NHS Trust,16/12/22,NURSE - BAND 5 - AGENCY,Stewart House,HCL NURSING,HNSI0001205,1470.93
Department of Health,Leicestershire Partnership NHS Trust,16/12/22,NURSE - BAND 2 - AGENCY,Sycamore (Willows),HCL NURSING,HNSI0001205,2440.57
Department of Health,Leicestershire Partnership NHS Trust,16/12/22,NURSE - BAND 5 - AGENCY,Sycamore (Willows),HCL NURSING,HNSI0001205,7467.08
Department of Health,Leicestershire Partnership NHS Trust,16/12/22,NURSE - BAND 2 - AGENCY,Thornton Ward - Bradgate Unit,HCL NURSING,HNSI0001205,909.91
Department of Health,Leicestershire Partnership NHS Trust,16/12/22,NURSE - BAND 5 - AGENCY,Thornton Ward - Bradgate Unit,HCL NURSING,HNSI0001205,2130.60
Department of Health,Leicestershire Partnership NHS Trust,16/12/22,NURSE - BAND 2 - AGENCY,Welford Ward,HCL NURSING,HNSI0001205,1272.74
Department of Health,Leicestershire Partnership NHS Trust,16/12/22,NURSE - BAND 5 - AGENCY,Welford Ward,HCL NURSING,HNSI0001205,2212.06
Department of Health,Leicestershire Partnership NHS Trust,16/12/22,NURSE - BAND 2 - AGENCY,Beechwood Ward,HCL NURSING,HNSI0001206,3893.51
Department of Health,Leicestershire Partnership NHS Trust,16/12/22,NURSE - BAND 5 - AGENCY,Beechwood Ward,HCL NURSING,HNSI0001206,3480.98
Department of Health,Leicestershire Partnership NHS Trust,16/12/22,NURSE - BAND 2 - AGENCY,CHS Surge Ward,HCL NURSING,HNSI0001206,9601.55
Department of Health,Leicestershire Partnership NHS Trust,16/12/22,NURSE - BAND 5 - AGENCY,CHS Surge Ward,HCL NURSING,HNSI0001206,5624.02
Department of Health,Leicestershire Partnership NHS Trust,16/12/22,NURSE - BAND 5 - AGENCY,City Planned Care - East,HCL NURSING,HNSI0001206,10472.08
Department of Health,Leicestershire Partnership NHS Trust,16/12/22,NURSE - BAND 5 - AGENCY,City Planned Care - West,HCL NURSING,HNSI0001206,9116.52
Department of Health,Leicestershire Partnership NHS Trust,16/12/22,NURSE - BAND 2 - AGENCY,Clarendon Ward,HCL NURSING,HNSI0001206,6755.49
Department of Health,Leicestershire Partnership NHS Trust,16/12/22,NURSE - BAND 5 - AGENCY,Clarendon Ward,HCL NURSING,HNSI0001206,5202.98
Department of Health,Leicestershire Partnership NHS Trust,16/12/22,NURSE - BAND 2 - AGENCY,Coalville Snibston Ward,HCL NURSING,HNSI0001206,4777.20
Department of Health,Leicestershire Partnership NHS Trust,16/12/22,NURSE - BAND 5 - AGENCY,Coalville Snibston Ward,HCL NURSING,HNSI0001206,3124.66
Department of Health,Leicestershire Partnership NHS Trust,16/12/22,NURSE - BAND 2 - AGENCY,Coalville Ward 2,HCL NURSING,HNSI0001206,3504.67
Department of Health,Leicestershire Partnership NHS Trust,16/12/22,NURSE - BAND 5 - AGENCY,Coalville Ward 2,HCL NURSING,HNSI0001206,3855.74
Department of Health,Leicestershire Partnership NHS Trust,16/12/22,NURSE - BAND 2 - AGENCY,Dalgliesh Ward,HCL NURSING,HNSI0001206,2669.83
Department of Health,Leicestershire Partnership NHS Trust,16/12/22,NURSE - BAND 5 - AGENCY,Dalgliesh Ward,HCL NURSING,HNSI0001206,3223.59
Department of Health,Leicestershire Partnership NHS Trust,16/12/22,NURSE - BAND 5 - AGENCY,"East Planned Care - Oadby,Wigston & Harborough",HCL NURSING,HNSI0001206,1493.76
Department of Health,Leicestershire Partnership NHS Trust,16/12/22,NURSE - BAND 2 - AGENCY,H&B Comm Hosp East Ward,HCL NURSING,HNSI0001206,4308.25
Department of Health,Leicestershire Partnership NHS Trust,16/12/22,NURSE - BAND 5 - AGENCY,H&B Comm Hosp East Ward,HCL NURSING,HNSI0001206,6187.21
Department of Health,Leicestershire Partnership NHS Trust,16/12/22,NURSE - BAND 2 - AGENCY,H&B Comm Hosp North Ward,HCL NURSING,HNSI0001206,3071.61
Department of Health,Leicestershire Partnership NHS Trust,16/12/22,NURSE - BAND 5 - AGENCY,H&B Comm Hosp North Ward,HCL NURSING,HNSI0001206,2060.24
Department of Health,Leicestershire Partnership NHS Trust,16/12/22,NURSE - BAND 2 - AGENCY,Lough Swithland Ward,HCL NURSING,HNSI0001206,933.22
Department of Health,Leicestershire Partnership NHS Trust,16/12/22,NURSE - BAND 5 - AGENCY,Lough Swithland Ward,HCL NURSING,HNSI0001206,3595.97
Department of Health,Leicestershire Partnership NHS Trust,16/12/22,NURSE - BAND 2 - AGENCY,Rutland Ward Nursing,HCL NURSING,HNSI0001206,3753.85
Department of Health,Leicestershire Partnership NHS Trust,16/12/22,NURSE - BAND 5 - AGENCY,Rutland Ward Nursing,HCL NURSING,HNSI0001206,3530.23
Department of Health,Leicestershire Partnership NHS Trust,16/12/22,NURSE - BAND 2 - AGENCY,St Lukes Stroke Ward,HCL NURSING,HNSI0001206,7993.89
Department of Health,Leicestershire Partnership NHS Trust,16/12/22,NURSE - BAND 5 - AGENCY,St Lukes Stroke Ward,HCL NURSING,HNSI0001206,1472.75
Department of Health,Leicestershire Partnership NHS Trust,16/12/22,NURSE - BAND 2 - AGENCY,St Lukes Ward 3,HCL NURSING,HNSI0001206,898.73
Department of Health,Leicestershire Partnership NHS Trust,16/12/22,NURSE - BAND 5 - AGENCY,St Lukes Ward 3,HCL NURSING,HNSI0001206,1630.42
Department of Health,Leicestershire Partnership NHS Trust,16/12/22,NURSE - BAND 5 - AGENCY,West Planned Care  - Hinckley Hub,HCL NURSING,HNSI0001206,736.74
Department of Health,Leicestershire Partnership NHS Trust,16/12/22,Staff Agency / Recruitment / Advertising Fees,Medical Management,ID MEDICAL GROUP LIMITED,D319658,45846.00
Department of Health,Leicestershire Partnership NHS Trust,16/12/22,Services / Recharges from NHS Trusts,Inter Unit I & E Distribution,UHL NHS TRUST (RWE),L0266279,39105.69
Department of Health,Leicestershire Partnership NHS Trust,16/12/22,Cytogenetic Testing,Community Paediatrics,UHL NHS TRUST (RWE),L0266280,40808.92
Department of Health,Leicestershire Partnership NHS Trust,19/12/22,Landline Telephone Rental / Calls,"Beaumont Leys Health Centre (P94, LPT)",VIRGIN MEDIA BUSINESS,853083001/004/1222,327.60
Department of Health,Leicestershire Partnership NHS Trust,19/12/22,Landline Telephone Rental / Calls,"Bennion Centre (including Forest Grange Day Unit) (P8, LPT)",VIRGIN MEDIA BUSINESS,853083001/004/1222,7.74
Department of Health,Leicestershire Partnership NHS Trust,19/12/22,Landline Telephone Rental / Calls,"Bradgate Unit (including Glenvale day Unit) (P7, LPT)",VIRGIN MEDIA BUSINESS,853083001/004/1222,8377.81
Department of Health,Leicestershire Partnership NHS Trust,19/12/22,Landline Telephone Rental / Calls,Braunstone Health and Social Care Centre (Part) (PROPCO),VIRGIN MEDIA BUSINESS,853083001/004/1222,1149.01
Department of Health,Leicestershire Partnership NHS Trust,19/12/22,Landline Telephone Rental / Calls,Bridge Park Plaza - First Floor (LPT),VIRGIN MEDIA BUSINESS,853083001/004/1222,2883.56
Department of Health,Leicestershire Partnership NHS Trust,19/12/22,Landline Telephone Rental / Calls,"Coalville Community Hospital (P138, LPT)",VIRGIN MEDIA BUSINESS,853083001/004/1222,1601.10
Department of Health,Leicestershire Partnership NHS Trust,19/12/22,Landline Telephone Rental / Calls,"Coalville Health Centre (P121, LPT)",VIRGIN MEDIA BUSINESS,853083001/004/1222,154.00
Department of Health,Leicestershire Partnership NHS Trust,19/12/22,Landline Telephone Rental / Calls,County Hall,VIRGIN MEDIA BUSINESS,853083001/004/1222,1530.80
Department of Health,Leicestershire Partnership NHS Trust,19/12/22,Landline Telephone Rental / Calls,Estates & Facilities Central,VIRGIN MEDIA BUSINESS,853083001/004/1222,7.72
Department of Health,Leicestershire Partnership NHS Trust,19/12/22,Landline Telephone Rental / Calls,"Evington Centre (P6, LPT)",VIRGIN MEDIA BUSINESS,853083001/004/1222,204.06
Department of Health,Leicestershire Partnership NHS Trust,19/12/22,Landline Telephone Rental / Calls,HIS,VIRGIN MEDIA BUSINESS,853083001/004/1222,2776.36
Department of Health,Leicestershire Partnership NHS Trust,19/12/22,Landline Telephone Rental / Calls,"Hawthorne Centre - Coalville (P14, LPT)",VIRGIN MEDIA BUSINESS,853083001/004/1222,553.58
Department of Health,Leicestershire Partnership NHS Trust,19/12/22,Landline Telephone Rental / Calls,"Hinckley and Bosworth Community Hospital (Sunnyside) (P133, LPT)",VIRGIN MEDIA BUSINESS,853083001/004/1222,953.46
Department of Health,Leicestershire Partnership NHS Trust,19/12/22,Landline Telephone Rental / Calls,Hood Park Leisure Centre Clinic,VIRGIN MEDIA BUSINESS,853083001/004/1222,23.22
Department of Health,Leicestershire Partnership NHS Trust,19/12/22,Landline Telephone Rental / Calls,"Hynca Lodge (P33, LPT)",VIRGIN MEDIA BUSINESS,853083001/004/1222,366.22
Department of Health,Leicestershire Partnership NHS Trust,19/12/22,Landline Telephone Rental / Calls,"Legion House, Ashby",VIRGIN MEDIA BUSINESS,853083001/004/1222,60.12
Department of Health,Leicestershire Partnership NHS Trust,19/12/22,Landline Telephone Rental / Calls,"Loughborough Hospital (P136, LPT)",VIRGIN MEDIA BUSINESS,853083001/004/1222,4410.72
Department of Health,Leicestershire Partnership NHS Trust,19/12/22,Landline Telephone Rental / Calls,Mawson House (LPT),VIRGIN MEDIA BUSINESS,853083001/004/1222,436.18
Department of Health,Leicestershire Partnership NHS Trust,19/12/22,Landline Telephone Rental / Calls,Merlyn Vaz Centre (CHP),VIRGIN MEDIA BUSINESS,853083001/004/1222,1451.92
Department of Health,Leicestershire Partnership NHS Trust,19/12/22,Landline Telephone Rental / Calls,"Mett Centre (P49, LPT)",VIRGIN MEDIA BUSINESS,853083001/004/1222,83.26
Department of Health,Leicestershire Partnership NHS Trust,19/12/22,Landline Telephone Rental / Calls,NSPCC Training Cente,VIRGIN MEDIA BUSINESS,853083001/004/1222,159.96
Department of Health,Leicestershire Partnership NHS Trust,19/12/22,Landline Telephone Rental / Calls,New Parks Health Centre (PROPCO),VIRGIN MEDIA BUSINESS,853083001/004/1222,1638.10
Department of Health,Leicestershire Partnership NHS Trust,19/12/22,Landline Telephone Rental / Calls,"OSL House (P54, LPT)",VIRGIN MEDIA BUSINESS,853083001/004/1222,923.48
Department of Health,Leicestershire Partnership NHS Trust,19/12/22,Landline Telephone Rental / Calls,"Orchard Resource Centre (P15, LPT)",VIRGIN MEDIA BUSINESS,853083001/004/1222,560.23
Department of Health,Leicestershire Partnership NHS Trust,19/12/22,Landline Telephone Rental / Calls,Pasley Road Health Centre (PROPCO),VIRGIN MEDIA BUSINESS,853083001/004/1222,145.44
Department of Health,Leicestershire Partnership NHS Trust,19/12/22,Landline Telephone Rental / Calls,"Prince Philip House (P96, LPT)",VIRGIN MEDIA BUSINESS,853083001/004/1222,1438.72
Department of Health,Leicestershire Partnership NHS Trust,19/12/22,Landline Telephone Rental / Calls,Rushey Mead Health Centre (PROPCO),VIRGIN MEDIA BUSINESS,853083001/004/1222,67.12
Department of Health,Leicestershire Partnership NHS Trust,19/12/22,Landline Telephone Rental / Calls,"Shepshed Health Centre (P123, LPT)",VIRGIN MEDIA BUSINESS,853083001/004/1222,7.74
Department of Health,Leicestershire Partnership NHS Trust,19/12/22,Landline Telephone Rental / Calls,"Springfield Road Health Centre (P92, LPT)",VIRGIN MEDIA BUSINESS,853083001/004/1222,349.10
Department of Health,Leicestershire Partnership NHS Trust,19/12/22,Landline Telephone Rental / Calls,"St Peters Health Center (Part 1st and 2nd floors) (P66, LPT)",VIRGIN MEDIA BUSINESS,853083001/004/1222,1608.17
Department of Health,Leicestershire Partnership NHS Trust,19/12/22,Landline Telephone Rental / Calls,"Swithland House - London Road 352 (P44, LPT)",VIRGIN MEDIA BUSINESS,853083001/004/1222,263.03
Department of Health,Leicestershire Partnership NHS Trust,19/12/22,Landline Telephone Rental / Calls,"The Cedars (P19, LPT)",VIRGIN MEDIA BUSINESS,853083001/004/1222,748.92
Department of Health,Leicestershire Partnership NHS Trust,19/12/22,Landline Telephone Rental / Calls,"The Willows - Cordelia Close (P22, LPT)",VIRGIN MEDIA BUSINESS,853083001/004/1222,612.96
Department of Health,Leicestershire Partnership NHS Trust,19/12/22,Landline Telephone Rental / Calls,"Valentine Centre (P3, LPT)",VIRGIN MEDIA BUSINESS,853083001/004/1222,1786.27
Department of Health,Leicestershire Partnership NHS Trust,19/12/22,Landline Telephone Rental / Calls,Warren Park Way 25 (PROPCO),VIRGIN MEDIA BUSINESS,853083001/004/1222,716.45
Department of Health,Leicestershire Partnership NHS Trust,19/12/22,Landline Telephone Rental / Calls,"Westcotes Group -Westcotes House (P78, LPT)",VIRGIN MEDIA BUSINESS,853083001/004/1222,1312.27
Department of Health,Leicestershire Partnership NHS Trust,19/12/22,Landline Telephone Rental / Calls,"Winstanley Drive Health Centre (P8, LPT)",VIRGIN MEDIA BUSINESS,853083001/004/1222,172.92
Department of Health,Leicestershire Partnership NHS Trust,19/12/22,Crs_NHS_LT1y -Resus Inventory Supplied.,Balance Sheet Collection,SUPPLY CHAIN CO LTD,1123209268,27049.22
Department of Health,Leicestershire Partnership NHS Trust,20/12/22,Photocopying,Estates & Facilities Central,LEXMARK INTERNATIONAL LTD,900650304602,35138.95
Department of Health,Leicestershire Partnership NHS Trust,20/12/22,Medical Equipment Repairs / Maintenance,Medical Devices Maintenance (LPT),SUPPLY CHAIN CO LTD,2123006265,79059.74
Department of Health,Leicestershire Partnership NHS Trust,20/12/22,CHP Estates Management,Merlyn Vaz Centre (CHP),COMM HLTH PARTNERSHIPS LTD,0060274451,74865.22
Department of Health,Leicestershire Partnership NHS Trust,20/12/22,WIP Project Not in BS - Information Technology,Work in Progress,BECTON DICKINSON DISPENSING UK LTD,CI021040,75110.40
Department of Health,Leicestershire Partnership NHS Trust,21/12/22,Other Non-Medical Supplies & Services,CRN,LOUGHBOROUGH UNIVERSITY,51883878,41776.00
Department of Health,Leicestershire Partnership NHS Trust,21/12/22,Travel & Subsistence,CRN,LOUGHBOROUGH UNIVERSITY,51883878,3200.00
Department of Health,Leicestershire Partnership NHS Trust,21/12/22,Pharmacy Payables Control A/C (LPT JAC),Balance Sheet Collection,SEQIRUS UK,9160130532,32921.28
Department of Health,Leicestershire Partnership NHS Trust,21/12/22,External Consultancy Fees,FM Transformation,TURNER & TOWNSEND COST MAN,PRIV00002649,31892.50
Department of Health,Leicestershire Partnership NHS Trust,21/12/22,Gas,"Beaumont Leys Health Centre (P94, LPT)",TOTAL GAS & POWER LTD,286479077/22,1454.83
Department of Health,Leicestershire Partnership NHS Trust,21/12/22,Gas,"Bennion Centre (including Forest Grange Day Unit) (P8, LPT)",TOTAL GAS & POWER LTD,286479077/22,17882.50
Department of Health,Leicestershire Partnership NHS Trust,21/12/22,Gas,"Bradgate Unit (including Glenvale day Unit) (P7, LPT)",TOTAL GAS & POWER LTD,286479077/22,27194.72
Department of Health,Leicestershire Partnership NHS Trust,21/12/22,Gas,Bridge Park Plaza - First Floor (LPT),TOTAL GAS & POWER LTD,286479077/22,2699.06
Department of Health,Leicestershire Partnership NHS Trust,21/12/22,Gas,"Bridge Park Road - Units 2 and 3 (P148, LPT)",TOTAL GAS & POWER LTD,286479077/22,430.14
Department of Health,Leicestershire Partnership NHS Trust,21/12/22,Gas,"Coalville Community Hospital (P138, LPT)",TOTAL GAS & POWER LTD,286479077/22,18241.52
Department of Health,Leicestershire Partnership NHS Trust,21/12/22,Gas,"Coalville Health Centre (P121, LPT)",TOTAL GAS & POWER LTD,286479077/22,1345.09
Department of Health,Leicestershire Partnership NHS Trust,21/12/22,Gas,"Evington Centre (P6, LPT)",TOTAL GAS & POWER LTD,286479077/22,2459.95
Department of Health,Leicestershire Partnership NHS Trust,21/12/22,Gas,"Farm Lodge (P34, LPT)",TOTAL GAS & POWER LTD,286479077/22,289.05
Department of Health,Leicestershire Partnership NHS Trust,21/12/22,Gas,"Feilding Palmer Hospital (Lutterworth) (P131, LPT)",TOTAL GAS & POWER LTD,286479077/22,3324.94
Department of Health,Leicestershire Partnership NHS Trust,21/12/22,Gas,"Frith Cottages 3 & 4 (P36, LPT)",TOTAL GAS & POWER LTD,286479077/22,323.26
Department of Health,Leicestershire Partnership NHS Trust,21/12/22,Gas,HIS,TOTAL GAS & POWER LTD,286479077/22,394.39
Department of Health,Leicestershire Partnership NHS Trust,21/12/22,Gas,"Hawthorne Centre - Coalville (P14, LPT)",TOTAL GAS & POWER LTD,286479077/22,956.18
Department of Health,Leicestershire Partnership NHS Trust,21/12/22,Gas,"Hinckley and Bosworth Community Hospital (Sunnyside) (P133, LPT)",TOTAL GAS & POWER LTD,286479077/22,12409.69
Department of Health,Leicestershire Partnership NHS Trust,21/12/22,Gas,"Hynca Lodge (P33, LPT)",TOTAL GAS & POWER LTD,286479077/22,759.17
Department of Health,Leicestershire Partnership NHS Trust,21/12/22,Gas,"LGH - Gwendolen House (P4, LPT)",TOTAL GAS & POWER LTD,286479077/22,3567.61
Department of Health,Leicestershire Partnership NHS Trust,21/12/22,Gas,"Loughborough Hospital (P136, LPT)",TOTAL GAS & POWER LTD,286479077/22,32392.72
Department of Health,Leicestershire Partnership NHS Trust,21/12/22,Gas,Mawson House (LPT),TOTAL GAS & POWER LTD,286479077/22,1254.84
Department of Health,Leicestershire Partnership NHS Trust,21/12/22,Gas,"Mett Centre (P49, LPT)",TOTAL GAS & POWER LTD,286479077/22,614.82
Department of Health,Leicestershire Partnership NHS Trust,21/12/22,Gas,"Narborough Health Centre (P117, LPT)",TOTAL GAS & POWER LTD,286479077/22,1055.70
Department of Health,Leicestershire Partnership NHS Trust,21/12/22,Gas,"Neville Centre - LGH (was DSC) (P147, LPT)",TOTAL GAS & POWER LTD,286479077/22,2041.07
Department of Health,Leicestershire Partnership NHS Trust,21/12/22,Gas,"OSL House (P54, LPT)",TOTAL GAS & POWER LTD,286479077/22,1450.20
Department of Health,Leicestershire Partnership NHS Trust,21/12/22,Gas,"Orchard Resource Centre (P15, LPT)",TOTAL GAS & POWER LTD,286479077/22,1476.60
Department of Health,Leicestershire Partnership NHS Trust,21/12/22,Gas,"Rutland Memorial Hospital (P134, LPT)",TOTAL GAS & POWER LTD,286479077/22,1718.95
Department of Health,Leicestershire Partnership NHS Trust,21/12/22,Gas,"Shepshed Health Centre (P123, LPT)",TOTAL GAS & POWER LTD,286479077/22,1287.08
Department of Health,Leicestershire Partnership NHS Trust,21/12/22,Gas,"Springfield Road Health Centre (P92, LPT)",TOTAL GAS & POWER LTD,286479077/22,1160.38
Department of Health,Leicestershire Partnership NHS Trust,21/12/22,Gas,"Stewart House (P61, LPT)",TOTAL GAS & POWER LTD,286479077/22,6905.76
Department of Health,Leicestershire Partnership NHS Trust,21/12/22,Gas,"Swithland House - London Road 352 (P44, LPT)",TOTAL GAS & POWER LTD,286479077/22,1956.91
Department of Health,Leicestershire Partnership NHS Trust,21/12/22,Gas,"The Agnes Unit (AKA Assessment and Treatment Centre) (P85, LPT)",TOTAL GAS & POWER LTD,286479077/22,7781.93
Department of Health,Leicestershire Partnership NHS Trust,21/12/22,Gas,The Beacon,TOTAL GAS & POWER LTD,286479077/22,3091.37
Department of Health,Leicestershire Partnership NHS Trust,21/12/22,Gas,"The Cedars (P19, LPT)",TOTAL GAS & POWER LTD,286479077/22,628.79
Department of Health,Leicestershire Partnership NHS Trust,21/12/22,Gas,"The Grange 1 (P4, LPT)",TOTAL GAS & POWER LTD,286479077/22,583.68
Department of Health,Leicestershire Partnership NHS Trust,21/12/22,Gas,"The Grange 2 (P41, LPT)",TOTAL GAS & POWER LTD,286479077/22,392.66
Department of Health,Leicestershire Partnership NHS Trust,21/12/22,Gas,"The Willows - Cordelia Close (P22, LPT)",TOTAL GAS & POWER LTD,286479077/22,6491.69
Department of Health,Leicestershire Partnership NHS Trust,21/12/22,Gas,"Valentine Centre (P3, LPT)",TOTAL GAS & POWER LTD,286479077/22,3263.59
Department of Health,Leicestershire Partnership NHS Trust,21/12/22,Gas,"Westcotes Group -Westcotes House (P78, LPT)",TOTAL GAS & POWER LTD,286479077/22,2181.00
Department of Health,Leicestershire Partnership NHS Trust,21/12/22,Gas,"Winstanley Drive Health Centre (P8, LPT)",TOTAL GAS & POWER LTD,286479077/22,1094.47
Department of Health,Leicestershire Partnership NHS Trust,21/12/22,Occupational Health,HR Operations,UHL NHS TRUST (RWE),L0266608,600000.00
